{"text_format":"1","workbook":"xlsx","n_sheets":10,"sheets":["Klassieke financiering","Agressie-subsidies","Klimaatsubsidies","Infrastructuurforfait PMH","Strategisch forfait ZH","Toestelfinanciering","Instandhoudingsforfait","Blad16","Blad17","Blad1"],"not_rendered":{"charts":0,"images":0,"macros":1,"external_links":0,"defined_names":8,"comments":0,"pivot_tables":0},"unopened":[],"bounds":{"document_bytes":16777216,"sheet_cells":100000,"rows_first":2000,"rows_last":500,"rows_between":2000,"halvings":0,"cell_chars":16384,"cell_head_chars":4096},"cells_cut":0,"cells_raw":0,"read":"whole","date_system":"1900"}

{"sheet":"Klassieke financiering","index":0,"n_rows":105,"n_cols":8,"rows_kept":105,"cut":false,"hidden":false,"merged":[[91,0,91,5],[0,0,0,7],[95,1,95,2],[4,0,4,5],[36,0,36,5],[39,0,39,5],[1,0,1,7],[55,0,55,5],[64,0,64,5],[88,0,88,5],[2,0,2,7]]}
["Goedgekeurde projecten klassieke subsidies van 1 januari tot 30 november 2025"]
["Klassieke betoelaging: een voorziening kan een vraag indienen tot het bekomen van investeringsbetoelaging (= subsidiebelofte) voor een beoogde investering. Het bedrag van de investeringsbetoelaging wordt aangerekend op de VIPA-kredieten op het moment van het verlenen van de subsidiebelofte. De subsidiebetalingen gebeuren in 5 schijven op basis van voorgelegde facturen. De subsidiebelofte wordt met 50% geïndexeerd op het moment van het aanvangsbevel van de werken en 50% op het moment van de ingebruikname."]
["Frequentie van actualisatie van deze lijst: maandelijks (begin van de maand)."]
["Dossiernummer","Provincie","Gemeente\nvoorziening","Initiatiefnemer","Voorziening","Project","Verleende \nsubsidiebeloften","Goedkeuring"]
["Voorzieningen Opgroeien",null,null,null,null,null,{"$f":"SUM(G6:G36)","v":20137619.47324042}]
["BJB162-A-MV","Antwerpen","Antwerpen","Pleegzorg Provincie Antwerpen vzw","Pleegzorg Provincie Antwerpen - afdeling Antwerpen-Zuid","verbouwing van een kantoorgebouw in de Heilig Hartstraat 12-14 en de Uitbreidingstraat 184 in Antwerpen",73279.55,"aanvullende belofte\ndoor indexering \nna ingebruikname\n17/01/2025"]
["20K145","Limburg","Halen","Familiehulp kinderopvang De Speelboom vzw","De Speelboom Halen","voltooiingswerken voor het Kinderdagverblijf 't Pagadderke voor 28 plaatsen (capaciteitsvervanging) in de Doelstraat 26-30 te Halen",67913.14,"aanvullende belofte\ndoor indexering \nna ingebruikname\n30/01/2025"]
["20K059","Brussel","Schaarbeek","t Pasrel vzw","Onthaal-, Oriëntatie- en Observatiecentrum 't Pasrel ","nieuwbouw voor het Onthaal-, Oriëntatie- en Observatiecentrum 't Pasrel Brussel in de Wilderstraat in Sint-Agatha-Berchem",14577.234748029732,"aanvullende belofte\ndoor indexering \nna aanvangsbevel\n5/02/2025"]
["22K041","West-Vlaanderen","Oostende","Familiehulp Kinderopvang \nDe Speelboom vzw","De Speelboom Oostende-Centrum","nieuwbouw van een kinderdagverblijf met 87 plaatsen (capaciteitsvervanging) op het Mispelplein in Oostende",64558.350353064016,"aanvullende belofte\ndoor indexering \nna aanvangsbevel\n12/02/2025"]
["22K060","Oost-Vlaanderen","Sint-Niklaas","Kaldoun BVBA","Het Droomwolkje 3","uitbreiding voor de Kinderopvang Het Droomwolkje 3 met 17 plaatsen (capaciteitsvervanging) in de Boonhemstraat 2 in Sint-Niklaas",6791.8319067477714,"aanvullende belofte\ndoor indexering \nna aanvangsbevel\n12/02/2025"]
["22K013","Limburg","Kinrooi","Jeugdzorgcentrum vzw","Organisatie voor Bijzondere Jeugdzorg Jeugdzorgcentrum","nieuwbouw van een jeugdzorgcentrum voor 20 jongeren (capaciteitsvervanging) in de Spoorwegstraat 20-22 in Maaseik",31160.07,"aanvullende belofte\ndoor indexering \nna aanvangsbevel\n18/02/2025"]
["23K051","Vlaams-Brabant","Sint-Genesius-Rode","Consolata Regio Sint-Genesius-Rode vzw","'t Kapoentje","nieuwbouw van een kinderdagverblijf voor 23 plaatsen (capaciteitsuitbreiding) op Zorgsite Sint-Genesius-Rode in de Zoniënwoudlaan in Sint-Genesius-Rode",5221.8034735695692,"aanvullende belofte\ndoor indexering \nna aanvangsbevel\n28/02/2025"]
["21K039","Antwerpen","Temse","Helan Kinderopvang vzw","Helan Kinderopvang - Tijgertuin","ingrijpende duurzame verbouwing voor kinderopvang Tijgertuin met 28 plaatsen in de Antwerpsestraat 180 in Temse",1025.5,"aanvullende belofte\ndoor indexering \nna aanvangsbevel\n28/02/2025"]
["20K023","Antwerpen","Brasschaat","Kinderdagverblijf Augustijntje vzw","Augustijntje","nieuwbouw van een kinderopvang voor 28 plaatsen in de Augustijnslei 54 in Brasschaat",633344.92000000004,"2025-03-24"]
["23K012","Limburg","Gingelom","OCMW Gingelom","Minimax","verbouwing van de kinderopvang Minimax met 40 plaatsen op de Steenweg 107 - 109 - 111 in Gingelom",6073.06,"2025-03-24"]
["20K185","Brussel","Sint-Jans-Molenbeek","De Molenketjes vzw","Arion","nieuwbouw voor Kinderopvang Arion met uitbreiding van 28 naar 45 plaatsen in de Lessenstraat 37-39 in Sint-Jans-Molenbeek",41491.07,"aanvullende belofte\ndoor indexering \nna aanvangsbevel\n8/05/2025"]
["20K148","Oost-Vlaanderen","Aalter","Kinderopvang Scholengroep Meetjesland vzw","Meneer Koekepeer","nieuwbouw van een kinderopvang voor 21 plaatsen in de Aalterseweg 1 in Aalter (Knesselare)",6913.4765719827847,"aanvullende belofte\ndoor indexering \nna aanvangsbevel\n9/05/2025"]
["20K146","Limburg","Hasselt","Kinderdagverblijf Klein Hemelrijk vzw","Klein Hemelrijk","nieuwbouw voor Kinderdagverblijf Klein Hemelrijk voor 25 plaatsen in de Overmerelaan 14 in Hasselt",36879.29,"aanvullende belofte\ndoor indexering \nna ingebruikname\n9/05/2025"]
["23K002","Oost-Vlaanderen","Gent","Stad Gent","Kinderdagverblijf Tondelier","nieuwbouw voor het Kinderdagverblijf Tondelier met 54 plaatsen (capaciteitsuitbreiding) in de Gasmeterlaan 106 in Gent",1308005.3500000001,"2025-06-03"]
["24K048","Vlaams-Brabant","Pajottegem","Pierrot vzw","Pierrot 3","voltooiingswerken voor een kinderopvang voor 25 plaatsen in Kerkhove 51 in Bever",375875.32,"2025-06-03"]
["22K050","Antwerpen","Antwerpen","Vrije Kinderdagverblijven Antwerpen vzw","De Kleine Luchtballon","nieuwbouw voor het Kinderdagverblijf De Kleine Luchtballon voor 30 plaatsen (capaciteitsvervanging) in de Lodewijk De Vochtstraat 15A in Antwerpen (Ekeren)",1232576.48,"2025-06-26"]
["21K067","Oost-Vlaanderen","Nazareth","Jeugdhulp Don Bosco Vlaanderen vzw","Centrum voor Kinderzorg- en Gezinsondersteuning 't Kinderkasteeltje","nieuwbouw voor het Centrum voor Kinderzorg- en Gezinsondersteuning 't Kinderkasteeltje met 18 plaatsen (capaciteitsvervanging) in de Drapstraat 49 in Nazareth",20516.46,"aanvullende belofte\ndoor indexering \nna aanvangsbevel\n10/07/2025"]
["24K073","Oost-Vlaanderen","Nazareth","Jeugdhulp Don Bosco Vlaanderen vzw","'t Kinderkasteeltje","nieuwbouw voor Kinderopvang 't Kinderkasteeltje met 52 plaatsen (capaciteitsvervanging) in de Drapstraat 49 in Nazareth",21085.09,"aanvullende belofte\ndoor indexering \nna aanvangsbevel\n10/07/2025"]
["24K076","Vlaams-Brabant","Leuven","De Wissel vzw","Organisatie voor bijzondere jeugdzorg De Wissel","innoverend project 'De Boomgaard' met de nieuwbouw voor de Organisatie voor bijzondere jeugdzorg in een modulair kader De Wissel voor 6 jongeren op de Wilsesteenweg 68 en de Genadeweg in Kessel-Lo ",601515.82999999996,"2025-07-23"]
["23K028","West-Vlaanderen","Brugge","Kinderopvang Mariawende vzw","Kinderdagverblijf Ons Tuintje","nieuwbouw van een kinderopvang voor 16 plaatsen (capaciteitsvervanging) in de Pastorieweg 19 in Brugge (Sint-Kruis-Brugge)",675602.78,"2025-09-02"]
["22K045","Antwerpen","Turnhout","Cirkant vzw","Organisatie voor bijzondere jeugdzorg Cirkant","nieuwbouw voor de Organisatie voor bijzondere jeugdzorg in een modulair kader met 20 verblijfplaatsen (capaciteitsvervanging) in Wolfseind 1-5-7 in Arendonk",3016906.66,"2025-09-08"]
["20K143","Limburg","Genk","Kinderdagverblijf Familia vzw","Pardijntje","nieuwbouw van een kinderdagverblijf met 108 plaatsen voor 6 groepen en een logistiek en administratief centrum in de Halmstraat 3-5-7 (Minderbroedersite) in Genk",4723322.18,"2025-09-08"]
["23K034","Brussel","Ukkel","Scholengroep 8: Brussel","Floreal","nieuwbouw voor Kinderopvang Floreal voor 54 plaatsen (23 plaatsen capaciteitsuitbreiding en 31 plaatsen capaciteitsvervanging) in de Floréallaan 14 in Ukkel",1477720.34,"2025-09-08"]
["24K133","Limburg","Genk","Kinderdagverblijf Familia vzw","Pardijntje","nieuwbouw van een kinderdagverblijf met 108 plaatsen voor 6 groepen in de Vennestraat 459 in Genk",2709799.65,"2025-09-08"]
["23K027","Antwerpen","Berlaar","Engeltjes en Bengeltjes BV","Engeltjes en Bengeltjes 3","nieuwbouw voor een kinderopvang met 36 plaatsen (14 plaatsen capaciteitsuitbreiding en 22 plaatsen capaciteitsvervanging) in de Aarschotsebaan 208 in Berlaar",7237.8624266963452,"aanvullende belofte\ndoor indexering \nna aanvangsbevel\n24/09/2025"]
["22K001","Antwerpen","Geel","De Waaiburg vzw","Organisatie voor bijzondere jeugdzorg De Waaiburg","ingrijpende duurzame verbouwing en uitbreiding (capaciteitsvervanging) van het bestaand administratief hoofdgebouw voor de Organisatie voor bijzondere jeugdzorg De Waaiburg in de Kameinestraat 35 in Geel",19304.263760332949,"aanvullende belofte\ndoor indexering \nna aanvangsbevel\n3/10/2025"]
["21K019","Limburg","Hasselt","De Hummeltjes vzw","De Hummeltjes","nieuwbouw voor het Kinderdagverblijf Het Hummelhof met 35 plaatsen (capaciteitsvervanging) in de Steenaartberg 3 in Sint-Truiden",79337.47,"gewijzigde belofte\n30/11/2025"]
["24K096","Vlaams-Brabant","Leuven","Zorg Leuven","De Warande","verbouwing van de 3° verdieping voor het Kinderdagverblijf Warande voor 30 plaatsen (capaciteitsvervanging) in de Warandelaan 2 in Leuven (Kessel-Lo)",736522.51,"2025-10-23"]
["24K106","Vlaams-Brabant","Leuven","Monte Rosa vzw","Monte Rosa Deurne","nieuwbouw van 2 residentiële leefgroepen voor 17 kinderen en jongeren (14 capaciteitsvervanging en 3 capaciteitsuitbreiding) voor de Organisatie voor bijzondere jeugdzorg in een modulair kader De Vlieger in de Drakenhoflaan 246-248 in Antwerpen (Deurne)",858196.97,"gewijzigde belofte\n30/11/2025"]
["24K012\nKG-Marlies","West-Vlaanderen","Kortrijk","Kinderdagverblijf Het Darteltje BV","Het Darteltje","aankoop met verbouwing voor Kinderopvang Het Darteltje met 90 plaatsen in de Kortrijksestraat 415 + in Kortrijk (Bissegem)",1049277.96,"2025-11-11"]
["24K095\nKO-Marlies","Vlaams-Brabant","Leuven","Zorg Leuven ","Kinderdagverblijf DoRemy","verbouwing voor Kinderopvang DoRemy met 15 plaatsen (capaciteitsuitbreiding) in de Frederik Lintsstraat 33 in Leuven ",235587,"SLO 30/11/2025"]
["Voorzieningen voor Centra voor Algemeen Welzijnswerk",null,null,null,null,null,{"$f":"SUM(G38:G39)","v":1106665.5707205497}]
["24K063","Oost-Vlaanderen",null,"Centrum Algemeen Welzijnswerk Oost-Vlaanderen vzw","Centrum Algemeen Welzijnswerk Oost-Vlaanderen","nieuwbouw voor de technische dienst voor Sociaal Woonbeleid en verbouwing van 7 studio’s voor tijdelijke dak- en thuislozen in de provincie Oost-Vlaanderen",1094460.28,"2025-07-05"]
["22K027","Vlaams-Brabant",null,"Centrum Algemeen Welzijnswerk Halle - Vilvoorde vzw","Centrum Algemeen Welzijnswerk Halle - Vilvoorde ","nieuwbouw van een crisisopvangcentrum en inloopcentrum (5 studio's en multifunctioneel dagverblijf) voor 10 personen in de provincie Vlaams-Brabant",12205.290720549528,"aanvullende belofte\ndoor indexering \nna aanvangsbevel\n30/09/2025"]
["Woonzorgvoorzieningen",null,null,null,null,null,{"$f":"SUM(G41:G55)","v":17282131.544213209}]
["23K033","Antwerpen","Geel","OCMW Welzijnszorg Kempen","Welzijnszorg Kempen","nieuwbouw voor een centrum voor dagopvang op de campus Lindelo op het Kerkplein 20 B in Lille ",3274.64,"aanvullende belofte\ndoor indexering \nna aanvangsbevel\n6/01/2025"]
["21K054","Antwerpen","Grobbendonk","OCMW Grobbendonk","Lokaal Dienstencentrum OCMW Grobbendonk","nieuwbouw van een antennepunt voor een bestaand lokaal dienstencentrum in de Kasteeldreef 1 in Grobbendonk (Bouwel)",8442.1456542438245,"aanvullende belofte\ndoor indexering \nna aanvangsbevel\n5/02/2025"]
["23K006","Antwerpen","Duffel","OCMW Duffel","Lokaal Dienstecentrum Duffel","uitbreiding en verbouwing van een lokaal dienstencentrum (capaciteitsuitbreiding) in de Kwakkelenberg 3 in Duffel",10177.115583455074,"aanvullende belofte\ndoor indexering \nna aanvangsbevel\n28/02/2025"]
["22K039","Antwerpen","Balen","OCMW Balen","Lokaal Dienstencentrum","nieuwbouw van een lokaal dienstencentrum in de Rozestraat 11 in Balen",25095.406178249163,"aanvullende belofte\ndoor indexering \nna aanvangsbevel\n4/03/2025"]
["23K020","Limburg","Lummen","OCMW Lummen","Lokaal Dienstencentrum 't Klavertje","nieuwbouw (vervanging) voor het Lokaal Dienstencentrum 't Klavertje in de Dr. Vanderhoeydonckstraat 56 in Lummen",11196.750619013445,"aanvullende belofte\ndoor indexering \nna aanvangsbevel\n17/06/2025"]
["OZ114-L-TD","Limburg","Leopoldsburg","Vitas","Dagverzorgingscentrum De Kiosk","nieuwbouw (vervanging) van het Dagverzorgingscentrum De Kiosk in De Wittellaan te Leopoldsburg",53394.99,"aanvullende belofte\ndoor indexering \nna ingebruikname\n23/06/2025"]
["20K026","West-Vlaanderen","Brugge","Woonzorgnetwerk Spirit vzw","Centrum voor Dagverzorging Rozemarijn","nieuwbouw (capaciteitsvervanging) van het Dagverzorgingscentrum Rozemarijn voor mensen met jongdementie in de Koning Leopold III-laan 4 in Brugge",480555.79,"2025-07-05"]
["BZ685-O-MV","Oost-Vlaanderen","Eeklo","Zorg-Saam zusters Kindsheid Jesu vzw","Dagverzorgingscentrum De Koraal","nieuwbouw (vervanging) voor het Dagverzorgingscentrum De Koraal in de Moeie 18-20 in Eeklo",482294.56,"2025-06-27"]
["24K085","Vlaams-Brabant","Leuven","Woonzorgnet-Dijleland vzw","Woonzorgcentrum De Wingerd","innoverend project 'De Boomgaard' met de nieuwbouw voor het Woonzorgcentrum De Wingerd voor 5 bedden op de Wilsesteenweg 68 en de Genadeweg in Kessel-Lo",501263.19,"2025-07-23"]
["BZ700-L-MV","Limburg","Sint-Truiden","Lokaal Dienstencentrum Sint-Anna vzw","Lokaal Dienstencentrum \nSint-Anna","nieuwbouw van het Lokaal Dienstencentrum Sint-Anna in de Abdijstraat te Sint-Truiden",25095.41,"aanvullende belofte\ndoor indexering \nna aanvangsbevel\n 9/09/2025"]
["23K003","Antwerpen","Mechelen","Zorgbedrijf Rivierenland","Hof van Egmont","nieuwbouw (vervanging) voor het Dagverzorgingscentrum De Kade en het Lokaal Dienstencentrum De Rooster (beide capaciteitsvervanging) voor Zorgbedrijf Rivierenland in de Zwartzustersvest 47 in Mechelen",1542863.46,"2025-10-21"]
["21K030","Brussel","Anderlecht","Cosmos-Excelsior vzw","Lokaal Dienstencentrum Vives","ingrijpende duurzame verbouwing voor het Lokaal Dienstencentrum Vives op het Martin Luther Kingplein 1 in Anderlecht",25095.406178249163,"aanvullende belofte\ndoor indexering \nna aanvangsbevel\n23/10/2025"]
["22K085\nOZ-Marlies","Antwerpen","Zandhoven","Pulderbos Revalidatiecentrum voor kinderen en jongeren vzw","Limmerik","nieuwbouw voor het Centrum voor Kortverblijf type 3 'Limmerik' met 7 verblijfseenheden (capaciteitsvervanging) in de Langestraat 170 in Zandhoven",729734.93,"2025-11-18"]
["24K031\nOZ-Marlies","Antwerpen","Zandhoven","Kristelijke Mutualistische Interfederale vzw","Centrum voor Herstelverblijf CM-Zorgverblijf Hooidonk","nieuwbouw voor het Centrum voor Herstelverblijf Hooidonk met 120 bedden (capaciteitsvervanging) in de Langestraat 172 in Zandhoven",13371483.279999999,"2025-11-18"]
["21K071\nHannelore","Oost-Vlaanderen","Laarne","OCMW Zorgband Leie en Schelde","Lokaal Dienstencentrum 't Binnenhof","nieuwbouw (vervanging) voor het Lokaal Dienstencentrum 't Binnenhof in de Oostremstraat in Laarne",12164.47,"aanvullende belofte\ndoor indexering \nna aanvangsbevel\n 6/11/2025\n"]
["Voorzieningen voor Preventieve en ambulante Gezondheidszorg",null,null,null,null,null,{"$f":"SUM(G57:G64)","v":4861008.8749305718}]
["21K063","Brussel","Sint-Jans-Molenbeek","Wijkgezondheidscentrum De Brug vzw","Wijkgezondheidscentrum De Brug","uitbreiding en een beperkte verbouwing voor het Wijkgezondheidscentrum De Brug in de Onafhankelijkheidsstraat 142-144 in Sint-Jans-Molenbeek",16622.72993333335,"aanvullende belofte\ndoor indexering \nna aanvangsbevel\n5/02/2025"]
["21K010","Antwerpen","Lier","Wijkgezondheidscentrum De Zilveren Knoop vzw","Wijkgezondheidscentrum De Zilveren Knoop","ingrijpende duurzame verbouwing en uitbreiding voor het Wijkgezondheidscentrum De Zilveren Knoop, met minder dan 2.000 patiënten, in de Lisperstraat 108 in Lier",16730.27095649828,"aanvullende belofte\ndoor indexering \nna aanvangsbevel\n24/02/2025"]
["20K171","Antwerpen","Antwerpen","Centrum voor Geestelijke Gezondheidszorg Andante vzw","Centrum voor Geestelijke Gezondheidszorg Andante","ingrijpende duurzame verbouwing en uitbreiding van de brouwerijsite voor het Centrum voor Geestelijke Gezondheidszorg Andante in de Hertstraat 5 in Antwerpen (Deurne)",94571.879619191866,"aanvullende belofte\ndoor indexering \nna aanvangsbevel\n18/03/2025"]
["20K175","Antwerpen","Mechelen","Wel en Wee vzw","Wijkgezondheidscentrum Wel en Wee","nieuwbouw voor het Wijkgezondheidscentrum Wel en Wee voor 2.500 patiënten in de Zwartzustersvest 47 in Mechelen",1114290.28,"2025-04-05"]
["23K019","Antwerpen","Antwerpen","Wijkgezondheidscentrum 't Spoor vzw","Wijkgezondheidscentrum 't Spoor","verbouwing voor het Wijkgezondheidscentrum 't Spoor met 3.500 patiënten in de Guldensporenstraat 84 in Antwerpen (Borgerhout)",412801.1,"2025-09-02"]
["21K041","Antwerpen","Antwerpen","Geneeskunde voor het Volk vzw","Wijkgezondheidscentrum Geneeskunde voor het volk","uitbreiding en ingrijpende energetische verbouwing  van een wijkgezondheidscentrum met 5.100 patiënten (en 5 disciplines) voor Geneeskunde voor het Volk in de Sint-Rochusstraat 55-57-59 in Antwerpen (Deurne)",38796.714421548764,"aanvullende belofte\ndoor indexering \nna aanvangsbevel\n7/10/2025"]
["23K063","Vlaams-Brabant","Leuven","De Hulster vzw","De Hulster","ingrijpende duurzame verbouwing van het project 'Welzijnstoren' voor het aanloopadres Beschut Wonen De Hulster op de Hertogensite in de Kapucijnenvoer 33 te Leuven.",675431.33,"2025-10-21"]
["23K064","Vlaams-Brabant","Leuven","Centrum voor Geestelijke Gezondheidszorg Vlaams-Brabant Oost vzw","Centrum voor Geestelijke Gezondheidszorg Vlaams-Brabant Oost ","ingrijpende duurzame verbouwing van het project 'Welzijnstoren' voor een centrum voor geestelijke gezondheidszorg op de Hertogensite in de Kapucijnenvoer 33 in Leuven",2491764.5699999998,"2025-10-21"]
["Voorzieningen voor Personen met een handicap",null,null,null,null,null,{"$f":"SUM(G66:G88)","v":8918838.1588095278}]
["20K177","West-Vlaanderen","Zedelgem","Inspirant vzw","Multifunctioneel Centrum Inspirant","uitbreiding van het Multifunctioneel Centrum Inspirant met een internaat voor 5 minderjarigen (capaciteitsvervanging) in de Sportlaan 20 in Zedelgem (Aartrijke)",111198.49,"aanvullende belofte\ndoor indexering \nna ingebruikname\n30/01/2025"]
["21K075","West-Vlaanderen","Zedelgem","Inspirant vzw","Multifunctioneel Centrum Inspirant","uitbreiding van het Multifunctioneel Centrum Inspirant met een internaat voor 5 minderjarigen (capaciteitsvervanging) in de Sportlaan 20 in Zedelgem (Aartrijke)",12495.93,"aanvullende belofte\ndoor indexering \nna ingebruikname\n30/01/2025"]
["22K006","Limburg","Peer","Begeleidingscentrum Sint-Elisabeth vzw","Sint-Elisabeth","nieuwbouw van een Multifunctioneel Centrum voor een GES-project voor 20 personen (capaciteitsvervanging) met ernstige gedrags- en emotionele problemen in de Sint-Elisabethlaan 20 in Peer (Wijchmaal)",45698.63704195281,"aanvullende belofte\ndoor indexering \nna aanvangsbevel\n11/03/2025"]
["24BU024","West-Vlaanderen","Oostende","Centrum voor Ambulante Revalidatie Stappie vzw","Centrum voor Ambulante Revalidatie Stappie","aankoop bijzondere uitrusting: een tympanometer en een Aurical Hitbox voor het Centrum voor Ambulante Revalidatie Stappie in de Koninginnelaan 55-57 in Oostende",211.40491633061902,"aanvullende belofte\ndoor indexering \nna bestelling\n24/03/2025"]
["20K020","Oost-Vlaanderen","Lokeren","Zorg en Onderwijs De Hagewinde vzw","De Hagewinde","nieuwbouw van 2 zorggroepen voor 22 verblijfplaatsen (capaciteitsvervanging) in de Poststraat 6 in Lokeren",243989.09,"aanvullende belofte\ndoor indexering \nna aanvangsbevel\n25/03/2025"]
["24BU122","Oost-Vlaanderen","Gent","Centrum voor Ambulante Revalidatie Impuls vzw","Centrum voor Ambulante Revalidatie Impuls","aankoop van bijzondere uitrusting: een nieuw computerpark: vervangen van de firewall, laptops, schermen, headsets, beamer en caremanager voor het Centrum voor Ambulante Revalidatie Impuls in de Karel Lodewijk Dierickxstraat 30 in Gent",37091.06,"2025-04-05"]
["24BU123","Oost-Vlaanderen","Gent","Centrum voor Ambulante Revalidatie Impuls vzw","Centrum voor Ambulante Revalidatie Impuls","aankoop van bijzondere uitrusting: een nieuw computerpark: M365 licenties, Barracuda email en databeveiliging, keyboards en draadloze muizen voor het Centrum voor Ambulante Revalidatie Impuls in de Karel Lodewijk Dierickxstraat 30 in Gent",27152.18,"2025-04-05"]
["24BU124","Oost-Vlaanderen","Gent","Centrum voor Ambulante Revalidatie Impuls vzw","Centrum voor Ambulante Revalidatie Impuls","aankoop van bijzondere uitrusting: een nieuw computerpark: UPS, Ipads, Desktop, werkuren, onderhoud voor 5 jaar en de aankoop van een interactief spelsysteem (Tovertafel) voor het Centrum voor Ambulante Revalidatie Impuls in de Karel Lodewijk Dierickxstraat 30 in Gent",35728.36,"2025-04-05"]
["24BU129","Oost-Vlaanderen","Deinze","Centrum voor Ambulante Revalidatie Ter Kouter vzw","Centrum voor Ambulante Revalidatie Ter Kouter","aankoop van bijzondere uitrusting: actualisatie van de huidige ICT-infrastructuur van een deel van therapeutische equipe en aankoop van een gehoorrevalidatietoestel Aurical Hit Box voor het Centrum voor Ambulante Revalidatie Ter Kouter in Aaltersesteenweg 2 in Deinze",17201.439999999999,"2025-04-05"]
["24BU136","Oost-Vlaanderen","Gent","Centrum voor Ambulante Revalidatie Oostakker vzw","Centrum voor Ambulante Revalidatie Oostakker","aankoop van bijzondere uitrusting: 30 laptops met toebehoren, 12 monitors, 4 I-pads en 5-jarige Microsoft 365 Business Premium licenties (via social ware) en back up cloud to cloud protection voor het Centrum voor Ambulante Revalidatie Oostakker in de Wolfputstraat 110 in Gent (Oostakker)",34094.339999999997,"2025-05-13"]
["24BU139","Oost-Vlaanderen","Gent","Centrum voor Ambulante Revalidatie Oostakker vzw","Centrum voor Ambulante Revalidatie Oostakker","aankoop van bijzondere uitrusting: 5-jarige gebruikerslicenties en module licenties voor CAReManager voor het Centrum voor Ambulante Revalidatie Oostakker in de Wolfputstraat 110 in Gent (Oostakker)",15493.76,"2025-05-13"]
["24BU137","Oost-Vlaanderen","Gent","Centrum voor Ambulante Revalidatie Oostakker vzw","Centrum voor Ambulante Revalidatie Oostakker","aankoop van bijzondere uitrusting: netwerkomgeving: firewall, noodbatterij, cloudmigratie en de geraamde werkuren voor de installatie van Microsoft 365, beveiliging, het installeren van de hardware on site, project management en nazorg voor het Centrum voor Ambulante Revalidatie Oostakker in de Wolfputstraat 110 in Gent (Oostakker)",14405.95,"2025-05-21"]
["24BU138","Oost-Vlaanderen","Gent","Centrum voor Ambulante Revalidatie Oostakker vzw","Centrum voor Ambulante Revalidatie Oostakker","aankoop van bijzondere uitrusting: opzetten van een intranet in een Sharepointomgeving voor het Centrum voor Ambulante Revalidatie Oostakker in de Wolfputstraat 110 in Gent (Oostakker)",15972,"2025-05-21"]
["23K054","Oost-Vlaanderen","Lievegem","Dienstverleningscentrum De Triangel vzw","Multifunctioneel Centrum De Triangel","nieuwbouw (vervanging) van 5 clusters voor 42 jongeren in de Molendreef 16 in Lievegem",4697088.05,"2025-05-21"]
["23K050","Vlaams-Brabant","Tienen","Centrum voor Ambulante Revalidatie D.A.T. vzw","Centrum voor Ambulante Revalidatie D.A.T.","nieuwbouw van een revalidatiecentrum in de Houtemstraat 115b in Tienen",940306.69,"2025-06-03"]
["24BU083","West-Vlaanderen","Nieuwpoort","Centrum voor Ambulante Revalidatie Houtland-Westkust vzw","Elora Centrum voor Ambulante Revalidatie","aankoop van bijzondere uitrusting: 10 laptops, monitors, toetsenborden en muizen, 10 x Microsoft Cloud 0365, NAS DS1821+, 4 x NAS Schijven WD RED PLUS 12TB, installatie van de computers, hard- en software voor het therapeutisch personeel van het Elora Centrum voor Ambulante Revalidatie in de Duinkerkestraat 40 in Nieuwpoort",19652.740000000002,"2025-07-05"]
["24BU084","West-Vlaanderen","Nieuwpoort","Centrum voor Ambulante Revalidatie Houtland-Westkust vzw","Elora Centrum voor Ambulante Revalidatie","aankoop van bijzondere uitrusting: 10 laptops, monitors, toetsenborden en muizen, 10 x Microsoft Cloud 0365, installatie van de computers, hard- en software voor het therapeutisch personeel van het Elora Centrum voor Ambulante Revalidatie in de Duinkerkestraat 40 in Nieuwpoort",18032.39,"2025-07-05"]
["23K040","West-Vlaanderen","Houthulst","De Vleugels vzw","De Vleugels","nieuwbouw van een multifunctioneel centrum voor 20 jongeren (capaciteitsvervanging) in de Elisabethstraat 1 in Houthulst (Klerken)",31435.698523058323,"aanvullende belofte\ndoor indexering \nna ingebruikname\n4/07/2025"]
["24K086","Vlaams-Brabant","Herent","Oostrem vzw","Oostrem","innoverend project 'De Boomgaard' met een nieuwbouw voor 25 plaatsen voor het Multifunctioneel Centrum Oostrem op de Wilsesteenweg 68 en de Genadeweg in Leuven (Kessel-Lo)",2506315.9300000002,"2025-07-23"]
["21K026","Antwerpen","Ranst","Emmaüs vzw","Dienstverleningscentrum Zevenbergen","nieuwbouw van een multifunctioneel centrum (internaat) met 6 plaatsen (capaciteitsvervanging) in de Boerenkrijglaan 25 in Ranst",6476.1433319920325,"aanvullende belofte\ndoor indexering \nna aanvangsbevel\n12/09/2025"]
["21K061","Limburg","Maaseik","Koninklijk Ondersteuningscentrum Ter Engelen Tevona vzw","Covida","aankoop met verbouwing voor een dagcentrum, internaat en semi-internaat in de IQ-Parklaan 6a, Blok D in Dilsen-Stokkem",35182.83,"aanvullende belofte\ndoor indexering \nna aanvangsbevel\n12/09/2025"]
["24BU002","West-Vlaanderen","Zedelgem","Centrum voor Ambulante Revalidatie Houtland - Westkust vzw","Centrum voor Ambulante Revalidatie 't Veld","aankoop bijzondere uitrusting: 10 laptops inclusief software en toebehoren voor het Centrum voor Ambulante Revalidatie 't Veld in de Ichtegemsestraat 32 in Zedelgem",480.96499619485621,"aanvullende belofte\ndoor indexering \nna bestelling\n12/09/2025"]
["23K050","Vlaams-Brabant","Tienen","Centrum voor Ambulante Revalidatie D.A.T. vzw","Centrum voor Ambulante Revalidatie D.A.T.","nieuwbouw (vervanging) van een revalidatiecentrum in de Houtemstraat 115b in Tienen",53134.080000000002,"gewijzigde belofte \n30/11/2025"]
["Psychiatrische Verzorgingstehuizen ",null,null,null,null,null,{"$f":"SUM(G90:G91)","v":49361.414399356232}]
["20K180","Oost-Vlaanderen","Zelzate","Organisatie Broeders van Liefde vzw","Psychiatrisch Verzorgingstehuis Sint-Jan-Baptist","nieuwbouw van een dag- en nachtverblijf met 11 plaatsen (capaciteitsvervanging) voor het Psychiatrisch Verzorgingstehuis Grijphoek van het Psychiatrisch Centrum Sint-Jan-Baptist in de Grijphoek in Zelzate",15481.150572608341,"aanvullende belofte\ndoor indexering \nna aanvangsbevel\n18/09/2025"]
["20K032","Antwerpen","Boechout","Organisatie Broeders van Liefde vzw","Psychiatrisch Ziekenhuis Multiversum","nieuwbouw voor 20 zorggebruikers (capaciteitsvervanging) voor het Psychiatrisch Verzorgingstehuis Multiversum in de Asberglaan 2 in Boechout",33880.263826747891,"aanvullende belofte\ndoor indexering \nna aanvangsbevel\n15/10/2025"]
["Revalidatieovereenkomsten",null,null,null,null,null,{"$f":"SUM(G93)","v":16292638.08}]
["25K054\nREV-OV-Marlies","Antwerpen","Zandhoven","Revalidatiecentrum Pulderbos voor kinderen en jongeren vzw","Revalidatiecentrum Pulderbos","nieuwbouw voor Kinderrevalidatie Pulderbos met 96 bedden (capaciteitsvervanging) in de Langestraat 172 in Zandhoven",16292638.08,"2025-11-18"]
[null,null,null,null,null,"Totaal goedgekeurde investeringen",{"$f":"SUM(G5,G37,G40,G56,G65,G89,G92)","v":68648263.116313636}]
[]
[null,"Overzicht per provincie ",null,null,null,"subsidiebelofte",{"$f":"IFERROR(KLEUR($G$6:$G$95,2,F96),0)","v":66350246}]
[null,"Antwerpen",{"$f":"SUMIF($B$5:$B$95,B97,$G$5:$G$95)","v":38684930.945758954},null,null,"wijziging belofte of technische rechtzetting",{"$f":"IFERROR(KLEUR($G$6:$G$95,2,F97),0)","v":990669}]
[null,"Limburg",{"$f":"SUMIF($B$5:$B$95,B98,$G$5:$G$95)","v":7825053.4776609652},null,null,"aanvullende belofte reële registratie- en notariskosten",{"$f":"IFERROR(KLEUR($G$6:$G$95,2,F98),0)","v":0}]
[null,"Oost-Vlaanderen",{"$f":"SUMIF($B$5:$B$95,B99,$G$5:$G$95)","v":8105928.8990513384},null,null,"indexering na aanvangsbevel",{"$f":"IFERROR(KLEUR($G$6:$G$95,2,F99),0)","v":920752}]
[null,"Vlaams-Brabant",{"$f":"SUMIF($B$5:$B$95,B100,$G$5:$G$95)","v":9993340.5141941179},null,null,"indexering na ingebruikname",{"$f":"IFERROR(KLEUR($G$6:$G$95,2,F100),0)","v":386597}]
[null,"West-Vlaanderen",{"$f":"SUMIF($B$5:$B$95,B101,$G$5:$G$95)","v":2463502.4987886488},null,null,"in circulatie naar IF of naar minister of naar SG",{"$f":"IFERROR(KLEUR($G$6:$G$95,2,F101),0)","v":0}]
[null,"Totaal",{"$f":"SUM(C97:C101)","v":67072756.335454024},null,null,"dossiers on hold"]
[null,null,null,null,null,null,{"$f":"SUM(G96:G101)","v":68648264}]
[null,"Brussel",{"$f":"SUMIF($B$5:$B$95,B104,$G$5:$G$95)","v":1575506.7808596122}]
[null,"Algemeen totaal",{"$f":"SUM(C102,C104)","v":68648263.116313636}]

{"sheet":"Agressie-subsidies","index":1,"n_rows":81,"n_cols":9,"rows_kept":81,"cut":false,"hidden":false,"merged":[[0,0,0,8],[1,0,1,8],[71,1,71,2],[2,0,2,8]]}
["Verleende agressiesubsidies van 1 januari tot 30 november 2025"]
["Subsidies voor preventie van agressie, vrijheidsbeperking of vrijheidsberoving: Voorzieningen met een verblijfsfunctie die werken met minderjarigen kunnen VIPA-subsidies aanvragen voor projecten van preventieve infrastructurele maatregelen inzake agressie, vrijheidsbeperking of vrijheidsberoving. De investeringssubsidie bedraagt 75% van de kostenraming (excl. BTW) van het project met een maximumbedrag van 175.000 euro voor voorzieningen met minder dan 50 personen vermeerderd met 2.500 euro per verblijfsplaats voor voorzieningen vanaf 50 personen.  De aanrekening op de VIPA-kredieten gebeurt op het moment van de toezegging."]
["Frequentie van actualisatie van deze lijst: als er een oproep is geweest en de middelen daarvoor zijn vastgelegd (1 keer per jaar)."]
["Dossiernummer","Provincie","Gemeente","Initiatiefnemer","Voorziening","Sector","Project","Verleende agressiedossiers\n(exclusief BTW)","Goedkeuring"]
["PVA 001 tris","Vlaams-Brabant","Leuven (Heverlee)","Medisch Pedagogisch Centrum Priorij Ter Bank vzw","Medisch Pedagogisch Centrum Priorij Ter Bank","Opgroeien en VAPH","Buiteninrichting: een traumasensitieve inrichting van de tuin\nBinneninrichting: agressie beperking door multimedia op de kamers",101264,"2025-07-07"]
["PVA 002 tris","Vlaams-Brabant","Tienen","Stichting M.M. Delacroix","Stichting M.M. Delacroix","Opgroeien en VAPH","Buiteninrichting: tuintherapie",72812.84,"2025-07-07"]
["PVA 003 tris","West-Vlaanderen","Kortrijk","De Hoge Kouter vzw","MFC De Hoge Kouter vza","VAPH","Buiteninrichting: trampoline                                                            \nBinneninrichting: \n1.alarm en oproepsysteem                    \n2.tavaruimte                                       \n3.rustruimte                                     \n4.prikkelarme omgeving realiseren: akoestische wanden                         \n5.maatregel voor de uitrusting binnenruimte - aangepast meubilair en tools",24736.76,"2025-07-07"]
["PVA 008 tris","Limburg","Sint-Truiden","Zorggroep Myna vzw","Zorggroep Myna","ELGEZ","Buiteninrichting: vergroening binnentuinen voor opnameafdelingen Orion 1 en 2             \nBinneninrichting:    \n1.inrichten comfortkamer Orion 3                                               \n2.inrichten comfortkamers spika 1 leefgroepen 1 en 2   ",118054.57,"2025-07-07"]
["PVA 009 quater","Antwerpen","Mechelen","Emmaus vzw","Jeugdzorg Emmaus Mechelen","Opgroeien ","Binneninrichting: \n1.binneninrichting De Aanzet     \n2.binneninrichting De Vesten ",16662.5,"2025-07-07"]
["PVA 013 tris","Oost-Vlaanderen","Geraardsbergen","Ons Geluk vzw","Home Magnolia","Opgroeien ","Buiteninrichting: installeren van ontspanningsmogelijkheden buitenruimte                                                               \nBinneninrichting: installeren van ontspanningsmogelijkheden binnen      ",17475.16,"2025-07-07"]
["PVA 017 tris","Oost-Vlaanderen","Gent","Organisatie Broeders van Liefde vzw","Zorggroep Guislain","ELGEZ","Buiteninrichting:                                             \n1.aanleg tuin intesive dienst psychosezorg (Vadem)                                                    \n2.aanleg tuin High intensive Care",154677.68,"2025-07-07"]
["PVA 018 bis","Limburg","Lummen","Organisatie Broeders van Liefde vzw","Orthopedagogisch Centrum Sint-Ferdinand","Opgroeien en VAPH","Buiteninrichting:                                                \n1.aanleg en inrichting van buitenzones, therapeutische tuinen en ruimtes voor spel en ontspanning                                               \n2.aanleg en inrichting van een therapeutische tuin, speel- en belevingsweides                                             \n3.aanleg en inrichting van therapeutische tuin en ruimte voor sport, spel en ontspanning                                            \n4.aanleg en inrichting van therapeutische tuin en ruimte voor sport, spel en ontspanning                                         \nBinneninrichting:                                               \n1.inrichting van een comfortroom en een multifunctioneel lokaal                           \n2.koppelen van bestaand oproepsysteem op het aanwezige IP-DECT systeem inclusief visualisatie       ",261140.27,"2025-07-07"]
["PVA 019 quater","West-Vlaanderen","Poperinge","De Lovie vzw","De Lovie","Opgroeien en VAPH","Buiteninrichting:                            \n1.buitenaanleg Linde                      \n2.installatie van een beweegbank                                                            \nBinneninrichting: installatie oproep- en afluistersysteem (Televic) in verschillende leefgroepen.                                 ",52537.13,"2025-07-07"]
["PVA 020 quater","Oost-Vlaanderen","Gent ","Universitair Ziekenhuis Gent (Onderdeel van Universiteit Gent)","Dienst Volwassenpsychiatrie (Afdeling Angst, Dwang en Stemmingsstoornissen, Spoedpsychiatrie, Dagcentrum) en Dienst Kinder- en Jeugdpsychiatrie van het UZ Gent","ELGEZ","Buiteninrichting: tuinelementen Kinder- en Jeugdpsychiatrie                          \nBinneninrichting:                                         \n1.comfortroom Afdeling Angst, Dwang en Stemmingsstoornissen                              \n2.comfortroom Dagcentrum Angst, Dwang en stemmingsstroornissen en Eetstoornissen                   \n3.interieur dagcentrum voor jongeren met een eetstoornis                                            \n4.seclusion Area Spoedpsychiatrie",69028.289999999994,"2025-07-07"]
["PVA 024 quinquies","Oost-Vlaanderen","Lokeren","Zorg & Onderwijs De Hagewinde vzw","Multifunctioneel Centrum De Hagewinde","Opgroeien en VAPH","Buiteninrichting: troost- en boosplek op centraal domein                          \nBinneninrichting:                                         \n1.comfortroom zorggroep Nele                     \n2.aanpassen afzonderingsruimte zorggroep Kadanz                                               \n3.aanpassen afzonderingsruimte in locatie Kban",34398.769999999997,"2025-07-07"]
["PVA 025 tris","Antwerpen","Mechelen","Emmaus vzw","Jeugdzorg Emmaus Antwerpen","Opgroeien ","Buiteninrichting: inrichting La Strada",79781.66,"2025-07-07"]
["PVA 031 tris","West-Vlaanderen","Wervik","Xplo vzw ","Xplo ","Opgroeien ","Buiteninrichting: WADI - een bijzondere plek van ontmoeting met jezelf en de ander       \nBinneninrichting: toegangsbeheer op maat voor kamertraining",42919.15,"2025-07-07"]
["PVA 037 bis","Limburg","Dilsen - Stokkem","Zorggroep Arum vzw","De Meander","VAPH","Buiteninrichting:                                             \n1.speeltoestellen en groenafscheiding CAMPUS FABOR                                      \n2.herinrichting buitenruimte CAMPUS MEANDER                                             \nBinneninrichting:                                         \n1.aanpassing Time - out Leefgroep WIP                        \n2.comfortroom leefgroep KEI      \n3.herinrichting leefruimte BLOCUS                                            \n4.stilte ruimte dagcentrum CAMPUS MANE",107556.91,"2025-07-07"]
["PVA 042 tris","Antwerpen","Brasschaat","Olo-Rotonde vzw","Olo-Rotonde","Opgroeien en VAPH","Binneninrichting:                                         \n1.volledige aankleding van onze PAR's                                          \n2.mobiele snoezelboxen                    \n3.camerasysteem                            \n4.deurcontrole-systeem                         ",47482.75,"2025-07-07"]
["PVA 044 tris","Oost-Vlaanderen","Lokeren","Emiliani vzw","Emiliani","VAPH","Binneninrichting:                                      \n1.inrichten omfortroom Tarwedreef 1                       \n2.inrichten belevingsruimte Korendreef 1                              \n3.aankoop blijfstoel Korendreef 1",9968,"2025-07-07"]
["PVA 045 tris","Oost-Vlaanderen","Buggenhout","Blijdorp vzw","Blijdorp","VAPH","Binneninrichting: inrichting snoezelruimte",31519.46,"2025-07-07"]
["PVA 048 tris","Limburg","Genk","Covida vzw","Covida","VAPH","Buiteninrichting:                                                \n1.terrassen Maaseik (valbeveiliging)              \n2.belevingstuin Maasmechelen                        \n3.belevingstuin De Kade Maaseik",122687.67999999999,"2025-07-07"]
["PVA 061 bis","Vlaams-Brabant","Leefdaal","De Eglantier vzw","De Eglantier","VAPH","Buiteninrichting: inrichting tuin (rust en ontdekking)                                                         \nBinneninrichting:                                      \n1.stilteruimte/comfortroom          \n2.akoestische aanpassingen \n3.zorgtechnologie: Protac SenSit + poef                                          \n4.zorgtechnologie: Protac Ballblankets",9924.93,"2025-07-07"]
["PVA 062 bis","Oost-Vlaanderen","Merelbeke-Melle","Karus vzw","Karus","ELGEZ","Buiteninrichting: \nAfdeling Hestia                             \nAfdeling Dam                                            \nAfdeling Dageraad",77226.399999999994,"2025-07-07"]
["PVA 067 bis","West-Vlaanderen","Rollegem","Medisch Pedagogisch Instituut De Kindervriend vzw","Medisch Pedagogisch Instituut De Kindervriend","VAPH","Buiteninrichting: beleeftuin met buitenkamers voor kinderen met een matig tot ernstig verstandelijke beperking en complexe problematiek.",82404.039999999994,"2025-07-07"]
["PVA 067 bis","West-Vlaanderen","Rollegem","Medisch Pedagogisch Instituut De Kindervriend vzw","Medisch Pedagogisch Instituut De Kindervriend","VAPH","Buiteninrichting: beleeftuin met buitenkamers voor kinderen met een matig tot ernstig verstandelijke beperking en complexe problematiek.",26352.83,"2025-09-02"]
["PVA 068 bis","Vlaams-Brabant","Roosdaal","Medisch Pedagogisch Centrum Sint-Franciscus vzw","Medisch Pedagogisch Centrum Sint-Franciscus","Opgroeien en VAPH","Buiteninrichting:                                             \n1.aanleg van een pannaveld            \n2.buiteninrichting MFC                                \n3.buiteninrichting VZA               \nBinneninrichting:                                         \n1.blijfstoelen en Sensit                               \n2.binneninrichting MFC                      ",12050.75,"2025-07-07"]
["PVA 071 tris","Limburg","Pelt","Stijn vzw","Dienstencentrum Sint Oda","VAPH","Buiteninrichting: gedragsregulerende en stimulerende buitenruimte voor een 15-tal kinderen en jongeren met een ernstig-diep verstandelijke beperking en moeilijk verstaanbaar gedrag.    \nBinneninrichting: gedragsregulerende individuele aanpassingen aan kamer en buitenruimte voor een 20 jarige jongeman met een ernstig verstandelijke beperking en extreem moeilijk verstaanbaar gedrag.",19668.240000000002,"2025-07-07"]
["PVA 086 tris","Antwerpen","Boechout","Organisatie Broeders van Liefde vzw","Zorggroep Multiversum","ELGEZ","Buiteninrichting: aanleg van een safe garden/therapeutische tuin voor de doelgroep DD Mentale beperking (Knoop)                                                                 \nBinneninrichting: verbouwing acute opname afdeling Intro 2 in functie van HIC                                         ",151161.85999999999,"2025-07-07"]
["PVA 088 bis","Oost-Vlaanderen","Lievegem","Blij Leven vzw","Blij Leven","Opgroeien","Buiteninrichting: masterplan buiteninrichting \nBinneninrichting:                                              \n1.plan prikkelarme omgeving, akoestich comfort                                                          \n2.aanpak speel- en comfortplek               ",72786.539999999994,"2025-07-07"]
["PVA 089 bis","Limburg","Genk","Intercommunale vereniging voor hulp aan Gehandicapten in Limburg Cvba","Ter Heide","VAPH","Buiteninrichting:                                             \n1.safe garden campus Genk                    \n2.dierenpark campus Genk                     \n3.oase: 3 extra buitencompartimenten Huis 3 + speeltoestellen Woonbuurt Oase           \nBinneninrichting:                                         \n1.meers 1 aanpassingen dagcentrum                                    \n2.brik 1 campus Brikhof Borgloon   \n3.opfrissing activiteitencentrum fase 2  ",23502.41,"2025-07-07"]
["PVA 100 bis","Antwerpen","Bonheiden","Onthaalcentrum Ter Heide vzw","Onthaalcentrum Ter Heide","Opgroeien ","Binneninrichting: snoezelruimte",5949.78,"2025-07-07"]
["PVA 101 bis","Brussel","Anderlecht","Tonuso vzw","Tonuso","Opgroeien","Buiteninrichting: tuinaanleg Tonuso Vilvoorde",89260.5,"2025-07-07"]
["PVA 105 bis","Vlaams-Brabant","Scherpenheuvel","Stijn vzw","Dienstencentrum Kamiano","VAPH","Binneninrichting:                                         \n1.Pierre Celishof (Hoegaarden): ontspanningsruimte en BeleefTV              \n2.Ter Boagaerde Zoutleeuw ontspanning door  muziektherapie                                    \n3.Ter Boogaerde (Zoutleeuw) aankoop van beleefTV",4888.32,"2025-07-07"]
["PVA 108 bis","Oost-Vlaanderen","Zelzate","Organisatie Broeders van Liefde vzw","Psychiatrisch Centrum Sint-Jan-Baptist","ELGEZ","Buiteninrichting: buitenruimte forensische nieuwbouw                                           \nBinneninrichting:                                             \n1.schermen highrisk-afdeling Levanta                          \n2.hometrainers highrisk-afdeling Levanta                   \n3.reminiscentieruimte Hemera             \n4.leeftuimte FTO Encarga 1                     ",175208.5,"2025-07-07"]
["PVA 110 bis","West-Vlaanderen","Brugge","UNIE-K vzw","UNIE-K","VAPH","Buiteninrichting: groenaanplanting beleeftuin                                    \nBinneninrichting:                                               \n1.installatie toezichtscamera's voor TOR en TOK                                                         \n2.automatiseren inkomdeur centraal gebouw                                  \n3.vandaalbestendig maken kamers                                        \n4.aankoop loopband               \n5.automatisatie kamerdeuren",36211.25,"2025-07-07"]
["PVA 111 bis","Limburg","Heusden-Zolder","Stijn vzw ","Dienstencentrum 't Weyerke","VAPH","Buiteninrichting: belevings-tuin ZAC4                                                               \nBinneninrichting: prikkelarme comfortroom    ",11178.32,"2025-07-07"]
["PVA 116 bis","West-Vlaanderen","Veurne","Algemeen Ziekenhuis West vzw","Algemeen Ziekenhuis West","ELGEZ","Buiteninrichting:                                             \n1.belevenistuin                                                 \n2.sport in het AZ West park                                          \nBinneninrichting: time out kamer Geriatrie A",36356.910000000003,"2025-07-07"]
["PVA 121 bis","Antwerpen","Bornem","Huize Eyckerheyde vzw","Huize Eyckerheyde","VAPH","Binneninrichting:                                               \n1.rust bieden                                      \n2.veiligheid voorop",38303.47,"2025-07-07"]
["PVA 125 bis","Brussel","Sint-Lambrechts-Woluwe","Organisatie Broeders van Liefde vzw","Koninklijk Instituut Woluwe","VAPH","Buiteninrichting:                                                \n1.cocoon schommels in de tuin                         \n2.verankerde antivandalisme combidoelen voetbal/basket/handbal                                 \n3.speelpanelen voor op de speelplaats          \nBinneninrichting:                                               \n1.aircotoestellen in leefgroepen onder het dak                                                      \n2.beveiliging lokalen via een nieuw sleutelplan met badges  ",11983.92,"2025-07-07"]
["PVA 132 bis","Limburg","Rekem (Lanaken)","Openbaar Psychiatrisch ZorgCentrum Rekem","Openbaar Psychiatrisch ZorgCentrum Rekem","ELGEZ","Buiteninrichting: stilteplek, bewegingseilanden met bewegingstoestellen op het domein                   \nBinneninrichting:                                         \n1.comfortroom op elke zorgeenheid                              \n2.badge gestuurde kamerdeuren             \n3.open balie aan verpleegposten \n4.bewegings-, relaxatie- en ontspanningstoestellen      \n5.multimediawand (touchscreen) in afzonderingskamer Het vervolg",195836.43,"2025-07-07"]
["PVA 135 bis","West-Vlaanderen","Beernem","Organisatie Broeders van Liefde vzw","Psychiatrisch Centrum Sint-Amandus","ELGEZ","Buiteninrichting: aanleg steiger bij vijver op domein                                                                \nBinneninrichting:                                         \n1.badkamer & comfortroom Pariz/pIZa                            \n2.aanpassen afzonderingskamer Wegwijs 1 ",64853.23,"2025-07-07"]
["PVA 137 bis","Oost-Vlaanderen","Zottegem","Groep Philippus Neri Geestelijke Gezondheidszorg vzw (TBE Vlaamse Ardennen - Psychiatrisch Ziekenhuis Frapello)","Groep Philippus Neri Geestelijke Gezondheidszorg (TBE Vlaamse Ardennen - Psychiatrisch Ziekenhuis Frapello)","ELGEZ","Binneninrichting:                                               \n1.campus Zottegem C&CZ                      \n2.campus Oosterzele",105909.65,"2025-07-07"]
["PVA 138 bis","West-Vlaanderen","Ieper"," Gezondheidszorg 'Bermhertigheid Jesu' vzw","Psychiatrisch Ziekenhuis Heilig Hart Ieper","ELGEZ","Binneninrichting:                                          \n1.ombouwen van afzonderingskamer naar comfortroom                    \n2.ontspanningsruimte creëren ter preventie van agressie op De Wering                                 \n3.rooming-in mogelijk maken voor mantelzorgers van cliënten in crisis                        \n4.uitbreiden van sluitmechanisme voor cliëntenkamers en burelen zorgmedewerkers                                \n5.rustruimte creëren op De Stroom           \n6.spanningsreducerende middelen voorzien",95195.42,"2025-07-07"]
["PVA 146 bis","Vlaams-Brabant","Heverlee","Sporen vzw","Sporen","Opgroeien","Binneninrichting:                                               \n1.trap en stiltepanelen Oudebaan                         \n2.stiltepanelen en schilderen Geldenaaksebaan                                     \n3.inrichting sport- en fitnesskelder",3790.77,"2025-07-07"]
["PVA 147 bis","Antwerpen","Antwerpen","Ziekenhuis aan de Stroom vzw","Ziekenhuis aan de Stroom Psychiatrisch Ziekenhuis Stuivenberg","ELGEZ","Binneninrichting:                                         \n1.creëren van 3 comfortrooms                \n2.rooming-in/gesprekslokaal - herinrichting aansluitende afzonderingskamer \n3.herinrichting afzonderingskamers",328058.5,"2025-07-07"]
["PVA 149 bis","Vlaams-Brabant","Roosdaal","Zonnelied vzw","Zonnelied","VAPH","Buiteninrichting: veilige en ontprikkelende tuinomgeving – campus Gooik                                                                                \nBinneninrichting:                                         \n1.verplaatsbare en tijdelijke camerasystemen – campus Roosdaal                                \n2.comfort en ontprikkeling: zitzakken met ondersteunend frame ",46965.88,"2025-07-07"]
["PVA 150 bis","Oost-Vlaanderen","Zwalm","De Bolster vzw","De Bolster","VAPH","Binneninrichting: optimalisatie gebouw De Gaverkant",10453.299999999999,"2025-07-07"]
["PVA 157","Vlaams-Brabant","Averbode","De Schommel vzw","Centrum voor Kindzorg en Gezinsondersteuning De Schommel","Opgroeien","Binneninrichting:                                                    \n1.rustruimte leefgroep 11jes                            \n2.rustige en ontspanningsurimte Kids \n3.bezoekers- en ontspanningsruimte leefgroep 11jes                                                  \n4.rustige ruimte (ontprikkelen en ontspannen) Ten Bosch",11863.75,"2025-07-07"]
["PVA 160","Antwerpen","Ekeren","Heder vzw","Heder","VAPH","Binneninrichting:                                      \n1.onruststoelen en autofixatiesystemen       \n2.akoestiek in ontmoetingscentrum het Atrium",11432.29,"2025-07-07"]
["PVA 161","Oost-Vlaanderen","Sint-Niklaas","Therapeutisch kinderdagverblijf Het Veer vzw","Multifunctioneel Centrum Het Veer","VAPH","Buiteninrichting: tuin                                 \nBinneninrichting:                                      \n1.polyvalente ruimte                             \n2.leefgroepen ",15710.72,"2025-07-07"]
["PVA 163","Antwerpen","Sint-Katelijne-Waver","Borgerstein vzw","Borgerstein","VAPH","Buiteninrichting: aanleg en inrichting van 5 beleeftuinen Berkendries ",71262.64,"2025-07-07"]
["PVA 165","Oost-Vlaanderen","Gavere","Organisatie Broeders van Liefde vzw","oc Ebergiste","VAPH","Buiteninrichting: inrichting van een groene buitenomgeving & de creatie van buitenplekken om tot rust te komen in Gavere\nBinneninrichting:                                         \n1.maatregelen gericht op het creëren van een veilige binnenomgeving met aandacht voor ontspanning, rust en comfort in Gavere                                   \n2.maatregen gericht op het creëren van ontspanning, rust en comfort in Sint-Martens-Latem                          \n3.maatregelen gericht op het creëren van een veilige binnenomgeving met aandacht voor ontspanning, rust en comfort in Gent",20722.07,"2025-07-07"]
["PVA 167","West-Vlaanderen","Menen","Christelijke Integrale Gezondheids- en Bejaardenzorg (afdeling Psychiatrisch Centrum OLV van Vrede Menen) vzw","Psychiatrisch Centrum Onze Lieve Vrouw van Vrede Menen","ELGEZ","Binneninrichting: infrastructuerele aanpassingen T-dienst NAH/Internering ifv. uitbouw intensive care unit (ICU)",102137.5,"2025-07-07"]
["PVA 171","Oost-Vlaanderen","Gent","Algemeen Ziekenhuis Maria Middelares vzw","Algemeen Ziekenhuis Maria Middelares","ELGEZ","Buiteninrichting: therapeutische patiotuin",65378.94,"2025-07-07"]
["PVA 173","Vlaams-Brabant","Diest","Martine Van Camp vzw","Martine Van Camp","VAPH","Buiteninrichting: creëren van een belevingstuin                                                    \nBinneninrichting:                                         \n1.compartimenteren huidige activiteitenzaal                              \n2.realiseren van rust en comfort ",13052.67,"2025-07-07"]
["PVA 174","Oost-Vlaanderen","Evergem","GO! Scholengroep Dynamiek","Multifunctioneel Centrum Het Punt","VAPH","Binneninrichting: ontspanning en comfort",28000,"2025-07-07"]
["PVA 175","Vlaams-Brabant"," Bierbeek","Organisatie Broeders van Liefde vzw","Zorggroep Sint-Kamillus","ELGEZ","Binneninrichting:                                                \n1.PZ Sint-Kamillus - herinrichting afzonderingscomplex OPM                                \n2.PZ Sint-Kamillus - afzonderingscomplex IFOR",545806.85,"2025-07-07"]
["PVA 177","Vlaams-Brabant","Halle","Algemeen Ziekenhuis Sint Maria vzw","Algemeen Ziekenhuis Sint Maria","ELGEZ","Buiteninrichting: therapietuin voor de afdeling PAAZ                                                      \nBinneninrichting:                                         \n1.comfortroom in de afdeling PAAZ                                                                \n2.akoestiek wachtruimte voor de afdeling spoed                                                                 \n3.dementie spoed box voor de afdeling spoed ",6950.69,"2025-07-07"]
["PVA 179","West-Vlaanderen","Brugge","Algemeen Ziekenhuis Sint-Jan Brugge av","Algemeen Ziekenhuis Sint-Jan Brugge","ELGEZ","Binneninrichting:                                         \n1.comfortroom met interactieve mediawand PAAZ A3                                      \n2.comfortroom met interactieve mediawand EPSI                                           \n3.comfortroom met interactieve mediawand PAAZ A2                                                       \n4.omvormen afzonderingskamer naar comfortroom PAAZ A1                      \n5.herinrichting afzonderingskamers EPSI en PAAZ A2 ",54610,"2025-07-07"]
["PVA 181","Limburg","Genk","Ziekenhuis Oost-Limburg","Ziekenhuis Oost-Limburg","ELGEZ","Buiteninrichting:                         \n1.buiteninrichting huidige patio PAAZ  \n2.VIPA5 dossier tuinen                                                                             \nBinneninrichting: tuin comfortroom psycho-geriatrie                      ",53863.05,"2025-07-07"]
["PVA 182","West-Vlaanderen","Kortrijk","Begeleidingscentrum Bethanie vzw","Begeleidingscentrum Bethanie","Opgroeien","Buiteninrichting:                                                \n1.aanleg van een rustgevende groenomgeving                                               \n2.sportinfrastructuur                                        \n3.uitbreiden van het cameratoezicht                \nBinneninrichting:                                               \n1.plafonds badkamers                        \n2.verbeteren van de akoestiek in het dagcentrum                                       \n3.polyvalente extra jongerenruimte in de kelder",33393.75,"2025-07-07"]
["PVA 183","Antwerpen","Duffel","Emmaüs vzw","Universitair Psychiatrisch Centrum Duffel ","ELGEZ","Binneninrichting:                                               \n1.project ouderenpsychiatrie                       \n2.uitbreiding beweegmogelijkheden",10152.299999999999,"2025-07-07"]
["PVA 184","West-Vlaanderen","Waregem","O.L.V. van Lourdes ziekenhuis Waregem","O.L.V. van Lourdes ziekenhuis Waregem","ELGEZ","Buiteninrichting: speelplein       \nBinneninrichting: PROSA-box",51562.5,"2025-07-07"]
["PVA 185","Antwerpen","Boechout","Jeugdhulp Don Bosco Vlaanderen","Jeugdhulp Don Bosco Antwerpen","Opgroeien","Buiteninrichting: speel- en sportzone Vreugdeborg   ",45838.8,"2025-07-07"]
["PVA 187","Oost-Vlaanderen","Sint-Niklaas","Psychiatrisch Centrum Sint-Hiëronymus vzw","Psychiatrisch Centrum Sint-Hiëronymus","ELGEZ","Buiteninrichting: herinrichting afdelingstuinen                                 \nBinneninrichting: preventieve infrastructurele maatregelen en herinrichting afzonderingskamers - ID dienst Legato",103290,"2025-07-07"]
["PVA 188","Oost-Vlaanderen","Evergem","i-mens vzw","Centrum voor Kindzorg en Gezinsondersteuning i-mens, Sloeberhof","Opgroeien ","Buiteninrichting: inrichting buitenspeelruimte 2                             \nBinneninrichting:                                               \n1.compartimentering van 1 naar 3 functionele ruimtes                            \n2.vervangen glazen wanden/deuren door volle wanden/deuren",16042.07,"2025-07-07"]
["PVA 189","West-Vlaanderen","Brugge","De Kade vzw","De Kade","Opgroeien en VAPH","Buiteninrichting:                                                \n1.campus Oostkamp - belevingstuin                       \n2.campus Spermalie - groen in de stad                                          \n3.campus De Polder - hut in het bos                                                     \n4.Het Vlot - sport als uitlaatklep                \n5.campus Het Anker - klimmen, skaten & voelen                                                      \n6.campus De Berkjes - gevoelsplekken   ",277801.55,"2025-07-07"]
["PVA 192","Oost-Vlaanderen","Deinze","Scholengroep 24K","Multifunctioneel Centrum Odisam","VAPH","Buiteninrichting:                                                \n1.speel- en sporttoestellen voor energie- en emotionele regulatie                                    \n2.speel- en sporttoestellen voor aanpassing aan de omgeving via 'Outdoor Sensory Spel' \n3.rust en ontspanning met “Modulaire Sensory Boxen”",24853.51,"2025-07-07"]
[null,null,null,null,null,null,"Totaal goedgekeurde investeringen",{"$f":"SUM(H5:H69)","v":4663911.379999999}]
[]
[null,"Overzicht per provincie "]
[null,"Antwerpen",{"$f":"SUMIF($B$5:$B$69,B73,$H$5:$H$69)","v":806086.55000000016}]
[null,"Limburg",{"$f":"SUMIF($B$5:$B$69,B74,$H$5:$H$69)","v":913487.87999999989}]
[null,"Oost-Vlaanderen",1032649.0599999999]
[null,"Vlaams-Brabant",829371.45]
[null,"West-Vlaanderen",981072.02]
[null,"Totaal",{"$f":"SUM(C73:C77)","v":4562666.9600000009}]
[]
[null,"Brussel",{"$f":"SUMIF($B$5:$B$69,B80,$H$5:$H$69)","v":101244.42}]
[null,"Algemeen totaal",{"$f":"SUM(C80,C78)","v":4663911.3800000008}]

{"sheet":"Klimaatsubsidies","index":2,"n_rows":261,"n_cols":11,"rows_kept":261,"cut":false,"hidden":false,"merged":[[0,0,0,7],[1,0,1,7],[2,0,2,7],[260,4,260,5]]}
["Goedgekeurde projecten klimaatsubsidies van 1 januari tot 30 november 2025"]
["Kimaatsubsidies: Erkende en vergunde voorzieningen binnen de sectoren van Welzijn, Volksgezondheid en Gezin kunnen VIPA-subsidies aanvragen voor het uitvoeren van energiebesparende maatregelen, op voorwaarde dat ze eerst via het Vlaams Energiebedrijf een energiescan hebben laten uitvoeren. Het overzicht bevat de toegezegde ‘klimaatsubsidies’. De aanrekening op de VIPA-kredieten gebeurt op het moment van de toezegging."]
["Frequentie van actualisatie van deze lijst: als er een oproep is geweest en de middelen daarvoor zijn vastgelegd (1 keer per jaar)."]
["Dossiernummer","Zorgvoorzieningstype","Initiatiefnemer","Voorziening/Gebouw","Maatregel","Provincie","Verleende klimaatsubsidies","Goedkeuring",null,"Overzicht per provincie "]
["RPS-1248-1","Lokaal dienstencentrum","Openbaar Centrum voor Maatschappelijk Welzijn van Veurne","Zonnebloem","Relighting","West-Vlaanderen",23544,"2025-05-09",null,"Antwerpen",{"$f":"SUMIF($F$5:$F$260,J5,$G$5:$G$260)","v":809802.4}]
["RPS-1249-1","Woonzorgcentrum","Openbaar Centrum voor Maatschappelijk Welzijn van Kortrijk","G-0013-WZC Ter Melle","Relighting/relamping","West-Vlaanderen",57000,"2025-05-09",null,"Limburg",539356.25]
["RPS-802-3","Woonzorgcentrum","Openbaar Centrum voor Maatschappelijk Welzijn van Kortrijk","G-0016-WZC De Weister","Relighting/relamping","West-Vlaanderen",46200,"2025-05-09",null,"Oost-Vlaanderen",1032667.1000000001]
["RPS-805-3","Woonzorgcentrum","Openbaar Centrum voor Maatschappelijk Welzijn van Kortrijk","G-0017-WZC Biezenheem","Relighting/relamping","West-Vlaanderen",36000,"2025-05-09",null,"Vlaams-Brabant",503040.75]
["RPS-804-3","Lokaal dienstencentrum","Openbaar Centrum voor Maatschappelijk Welzijn van Kortrijk","G-0028-WKC De Zonnewijzer","PV-panelen","West-Vlaanderen",6605,"2025-05-09",null,"West-Vlaanderen",4017003.24]
["RPS-804-4","Lokaal dienstencentrum","Openbaar Centrum voor Maatschappelijk Welzijn van Kortrijk","G-0028-WKC De Zonnewijzer","Relighting/relamping","West-Vlaanderen",17400,"2025-05-09",null,"Brussels Hoofdstedelijk Gewest",0]
["RPS-800-4","Lokaal dienstencentrum","Openbaar Centrum voor Maatschappelijk Welzijn van Kortrijk","G-0029-De Nieuwe Lente - WKC De Zevenkamer","Relighting/relamping","West-Vlaanderen",12600,"2025-05-09",null,"Totaal Vlaanderen",{"$f":"SUM(K5:K10)","v":6901869.7400000002}]
["RPS-800-3","Initiatief Buitenschoolse Opvang","Openbaar Centrum voor Maatschappelijk Welzijn van Kortrijk","G-0029-De Nieuwe Lente - WKC De Zevenkamer","PV-panelen","West-Vlaanderen",8649,"2025-05-09"]
["RPS-801-5","Groep van Assistentiewoningen","Openbaar Centrum voor Maatschappelijk Welzijn van Kortrijk","G-0355-Rietveld","Relighting/relamping","West-Vlaanderen",1135,"2025-05-09"]
["RPS-803-2","Groepsopvang","Openbaar Centrum voor Maatschappelijk Welzijn van Kortrijk","G-0471-Kinderopvang Blokkenhuis","PV-panelen","West-Vlaanderen",1548,"2025-05-09"]
["RPS-1250-1","Woonzorgcentrum","Openbaar Centrum voor Maatschappelijk Welzijn van Oudenburg","WZC Riethove","PV-panelen","West-Vlaanderen",7805,"2025-05-09"]
["RPS-1250-2","Woonzorgcentrum","Openbaar Centrum voor Maatschappelijk Welzijn van Oudenburg","WZC Riethove","Relighting/relamping","West-Vlaanderen",17100,"2025-05-09"]
["RPE-880-9","Algemeen ziekenhuis","AZ ST-JAN Brugge-Oostende A.V.","AZ Sint-Jan, Ruddershove","PV-panelen","West-Vlaanderen",250000,"2025-05-09"]
["RPS-291-8","Algemeen ziekenhuis","Onze-Lieve-Vrouw van Lourdes Ziekenhuis Waregem","O.L.V. van Lourdes Ziekenhuis Waregem vzw","Relighting","West-Vlaanderen",2214,"2025-05-09"]
["RPS-291-9","Algemeen ziekenhuis","Onze-Lieve-Vrouw van Lourdes Ziekenhuis Waregem","O.L.V. van Lourdes Ziekenhuis Waregem vzw","Relighting","West-Vlaanderen",5756,"2025-05-09"]
["RPS-291-10","Algemeen ziekenhuis","Onze-Lieve-Vrouw van Lourdes Ziekenhuis Waregem","O.L.V. van Lourdes Ziekenhuis Waregem vzw","Relighting","West-Vlaanderen",2628,"2025-05-09"]
["RPS-291-11","Algemeen ziekenhuis","Onze-Lieve-Vrouw van Lourdes Ziekenhuis Waregem","O.L.V. van Lourdes Ziekenhuis Waregem vzw","Relighting","West-Vlaanderen",3250,"2025-05-09"]
["RPS-291-12","Algemeen ziekenhuis","Onze-Lieve-Vrouw van Lourdes Ziekenhuis Waregem","O.L.V. van Lourdes Ziekenhuis Waregem vzw","Relighting","West-Vlaanderen",17366,"2025-05-09"]
["RPS-291-13","Algemeen ziekenhuis","Onze-Lieve-Vrouw van Lourdes Ziekenhuis Waregem","O.L.V. van Lourdes Ziekenhuis Waregem vzw","Relighting","West-Vlaanderen",14675,"2025-05-09"]
["RPS-291-14","Algemeen ziekenhuis","Onze-Lieve-Vrouw van Lourdes Ziekenhuis Waregem","O.L.V. van Lourdes Ziekenhuis Waregem vzw","Relighting","West-Vlaanderen",15612,"2025-05-09"]
["RPS-291-15","Algemeen ziekenhuis","Onze-Lieve-Vrouw van Lourdes Ziekenhuis Waregem","O.L.V. van Lourdes Ziekenhuis Waregem vzw","Relighting","West-Vlaanderen",3943,"2025-05-09"]
["RPS-291-16","Algemeen ziekenhuis","Onze-Lieve-Vrouw van Lourdes Ziekenhuis Waregem","O.L.V. van Lourdes Ziekenhuis Waregem vzw","Relighting","West-Vlaanderen",10701,"2025-05-09"]
["RPS-291-17","Algemeen ziekenhuis","Onze-Lieve-Vrouw van Lourdes Ziekenhuis Waregem","O.L.V. van Lourdes Ziekenhuis Waregem vzw","Relighting","West-Vlaanderen",5843,"2025-05-09"]
["RPS-291-18","Algemeen ziekenhuis","Onze-Lieve-Vrouw van Lourdes Ziekenhuis Waregem","O.L.V. van Lourdes Ziekenhuis Waregem vzw","Relighting","West-Vlaanderen",6636,"2025-05-09"]
["RPS-291-19","Algemeen ziekenhuis","Onze-Lieve-Vrouw van Lourdes Ziekenhuis Waregem","O.L.V. van Lourdes Ziekenhuis Waregem vzw","Relighting","West-Vlaanderen",2650,"2025-05-09"]
["RPS-291-20","Algemeen ziekenhuis","Onze-Lieve-Vrouw van Lourdes Ziekenhuis Waregem","O.L.V. van Lourdes Ziekenhuis Waregem vzw","Relighting","West-Vlaanderen",8571,"2025-05-09"]
["RPS-291-21","Algemeen ziekenhuis","Onze-Lieve-Vrouw van Lourdes Ziekenhuis Waregem","O.L.V. van Lourdes Ziekenhuis Waregem vzw","Relighting","West-Vlaanderen",10721,"2025-05-09"]
["RPS-291-22","Algemeen ziekenhuis","Onze-Lieve-Vrouw van Lourdes Ziekenhuis Waregem","O.L.V. van Lourdes Ziekenhuis Waregem vzw","Relighting","West-Vlaanderen",10903,"2025-05-09"]
["RPS-291-23","Algemeen ziekenhuis","Onze-Lieve-Vrouw van Lourdes Ziekenhuis Waregem","O.L.V. van Lourdes Ziekenhuis Waregem vzw","Relighting","West-Vlaanderen",26880,"2025-05-09"]
["RPS-291-7","Algemeen ziekenhuis","Onze-Lieve-Vrouw van Lourdes Ziekenhuis Waregem","O.L.V. van Lourdes Ziekenhuis Waregem vzw","PV-panelen","West-Vlaanderen",303000,"2025-05-09"]
["RPS-291-24","Algemeen ziekenhuis","Onze-Lieve-Vrouw van Lourdes Ziekenhuis Waregem","O.L.V. van Lourdes Ziekenhuis Waregem vzw","Relighting","West-Vlaanderen",4344,"2025-05-09"]
["RPS-291-25","Algemeen ziekenhuis","Onze-Lieve-Vrouw van Lourdes Ziekenhuis Waregem","O.L.V. van Lourdes Ziekenhuis Waregem vzw","Relighting","West-Vlaanderen",19605,"2025-05-09"]
["RPS-291-26","Algemeen ziekenhuis","Onze-Lieve-Vrouw van Lourdes Ziekenhuis Waregem","O.L.V. van Lourdes Ziekenhuis Waregem vzw","Relighting","West-Vlaanderen",54717,"2025-05-09"]
["RPS-291-27","Algemeen ziekenhuis","Onze-Lieve-Vrouw van Lourdes Ziekenhuis Waregem","O.L.V. van Lourdes Ziekenhuis Waregem vzw","Relighting","West-Vlaanderen",22492,"2025-05-09"]
["RPS-291-28","Algemeen ziekenhuis","Onze-Lieve-Vrouw van Lourdes Ziekenhuis Waregem","O.L.V. van Lourdes Ziekenhuis Waregem vzw","Relighting","West-Vlaanderen",24219,"2025-05-09"]
["RPS-291-29","Algemeen ziekenhuis","Onze-Lieve-Vrouw van Lourdes Ziekenhuis Waregem","O.L.V. van Lourdes Ziekenhuis Waregem vzw","Relighting","West-Vlaanderen",2950,"2025-05-09"]
["RPS-291-30","Algemeen ziekenhuis","Onze-Lieve-Vrouw van Lourdes Ziekenhuis Waregem","O.L.V. van Lourdes Ziekenhuis Waregem vzw","Relighting","West-Vlaanderen",17081,"2025-05-09"]
["RPS-291-31","Algemeen ziekenhuis","Onze-Lieve-Vrouw van Lourdes Ziekenhuis Waregem","O.L.V. van Lourdes Ziekenhuis Waregem vzw","Relighting","West-Vlaanderen",14690,"2025-05-09"]
["RPS-291-32","Algemeen ziekenhuis","Onze-Lieve-Vrouw van Lourdes Ziekenhuis Waregem","O.L.V. van Lourdes Ziekenhuis Waregem vzw","Relighting","West-Vlaanderen",8574,"2025-05-09"]
["RPS-291-33","Algemeen ziekenhuis","Onze-Lieve-Vrouw van Lourdes Ziekenhuis Waregem","O.L.V. van Lourdes Ziekenhuis Waregem vzw","Relighting","West-Vlaanderen",9087,"2025-05-09"]
["RPS-291-34","Algemeen ziekenhuis","Onze-Lieve-Vrouw van Lourdes Ziekenhuis Waregem","O.L.V. van Lourdes Ziekenhuis Waregem vzw","Relighting","West-Vlaanderen",1119,"2025-05-09"]
["RPS-291-35","Algemeen ziekenhuis","Onze-Lieve-Vrouw van Lourdes Ziekenhuis Waregem","O.L.V. van Lourdes Ziekenhuis Waregem vzw","Relighting","West-Vlaanderen",17809,"2025-05-09"]
["RPS-1251-2","Organisatie met terreinwerking in de preventieve gezondheidszorg","ORGANISATIE BROEDERS VAN LIEFDE","De Sleutel - ACG","Monitoring","Oost-Vlaanderen",579,"2025-05-09"]
["RPS-1251-4","Organisatie met terreinwerking in de preventieve gezondheidszorg","ORGANISATIE BROEDERS VAN LIEFDE","De Sleutel - ACG","Vervangen pompen","Oost-Vlaanderen",684,"2025-05-09"]
["RPS-1251-1","Organisatie met terreinwerking in de preventieve gezondheidszorg","ORGANISATIE BROEDERS VAN LIEFDE","De Sleutel - ACG","Isoleren pompen/kranen/hydraulica","Oost-Vlaanderen",1098,"2025-05-09"]
["RPS-1251-3","Organisatie met terreinwerking in de preventieve gezondheidszorg","ORGANISATIE BROEDERS VAN LIEFDE","De Sleutel - ACG","Relighting","Oost-Vlaanderen",9240,"2025-05-09"]
["RPS-1252-1","Revalidatieovereenkomsten","ORGANISATIE BROEDERS VAN LIEFDE","De Sleutel - RKJ","Isoleren pompen/kranen/hydraulica","Oost-Vlaanderen",1048,"2025-05-09"]
["RPS-1252-4","Revalidatieovereenkomsten","ORGANISATIE BROEDERS VAN LIEFDE","De Sleutel - RKJ","Vervangen pompen","Oost-Vlaanderen",1009,"2025-05-09"]
["RPS-1252-3","Revalidatieovereenkomsten","ORGANISATIE BROEDERS VAN LIEFDE","De Sleutel - RKJ","Relighting","Oost-Vlaanderen",7608,"2025-05-09"]
["RPS-1252-2","Revalidatieovereenkomsten","ORGANISATIE BROEDERS VAN LIEFDE","De Sleutel - RKJ","PV-panelen","Oost-Vlaanderen",2697,"2025-05-09"]
["RPE-1253-1","Subsidie-eenheid VAPH","ORGANISATIE BROEDERS VAN LIEFDE","Het Roerhuis","PV-panelen","Vlaams-Brabant",13061.25,"2025-05-09"]
["RPE-1088-2","Subsidie-eenheid VAPH","ORGANISATIE BROEDERS VAN LIEFDE","OCSF DCH","Relighting","Limburg",7186.2,"2025-05-09"]
["RPE-1088-3","Subsidie-eenheid VAPH","ORGANISATIE BROEDERS VAN LIEFDE","OCSF DCH","Stookplaatsrenovatie","Limburg",34459.599999999999,"2025-05-09"]
["RPE-1006-2","Subsidie-eenheid VAPH","ORGANISATIE BROEDERS VAN LIEFDE","OCSF Gebouw S","Dakisolatie plat dak","Limburg",95891.25,"2025-05-09"]
["RPE-1006-3","Subsidie-eenheid VAPH","ORGANISATIE BROEDERS VAN LIEFDE","OCSF Gebouw S","Relighting","Limburg",22872.5,"2025-05-09"]
["RPE-1007-4","Subsidie-eenheid VAPH","ORGANISATIE BROEDERS VAN LIEFDE","OCSF Gebouw_P1","Relighting","Limburg",8271.2000000000007,"2025-05-09"]
["RPE-1007-5","Subsidie-eenheid VAPH","ORGANISATIE BROEDERS VAN LIEFDE","OCSF Gebouw_P1","Stookplaatsrenovatie","Limburg",25668.65,"2025-05-09"]
["RPE-1008-2","Subsidie-eenheid VAPH","ORGANISATIE BROEDERS VAN LIEFDE","OCSF Gebouw_P2","Isoleren pompen/kranen/hydraulica","Limburg",72,"2025-05-09"]
["RPE-1008-3","Subsidie-eenheid VAPH","ORGANISATIE BROEDERS VAN LIEFDE","OCSF Gebouw_P2","Relighting","Limburg",8271.2000000000007,"2025-05-09"]
["RPE-1008-4","Subsidie-eenheid VAPH","ORGANISATIE BROEDERS VAN LIEFDE","OCSF Gebouw_P2","Stookplaatsrenovatie","Limburg",22868.65,"2025-05-09"]
["RPE-1254-1","Subsidie-eenheid VAPH","ORGANISATIE BROEDERS VAN LIEFDE","OCSF_SI Hoeveke","PV-panelen","Limburg",3780,"2025-05-09"]
["RPE-575-10","Psychiatrisch ziekenhuis","ORGANISATIE BROEDERS VAN LIEFDE","SJB - Suikerkaai (volledige site)","Windmolens","Oost-Vlaanderen",92500,"2025-05-09"]
["RPS-1255-1","Subsidie-eenheid VAPH","NEKTARI","BWZ Klein Brabant VZW (site Flegado)","Zonneboiler","Antwerpen",5999,"2025-05-09"]
["RPS-1256-1","Centrum voor integrale gezinszorg","De Zeshoek","CIG DE ZESHOEK","Dakisolatie plat dak","Limburg",72000,"2025-05-09"]
["RPS-1256-2","Centrum voor integrale gezinszorg","De Zeshoek","CIG DE ZESHOEK","Dakisolatie plat dak","Limburg",11040,"2025-05-09"]
["RPS-1257-2","Algemeen ziekenhuis","A.Z. SINT-LUCAS","AZ Sint Lucas Hoofdgebouw","Regeltechn.ventilatie","West-Vlaanderen",33520,"2025-05-09"]
["RPS-1257-1","Algemeen ziekenhuis","A.Z. SINT-LUCAS","AZ Sint Lucas Hoofdgebouw","PV-panelen","West-Vlaanderen",8391,"2025-05-09"]
["RPS-1257-3","Algemeen ziekenhuis","A.Z. SINT-LUCAS","AZ Sint Lucas Hoofdgebouw","Relighting","West-Vlaanderen",72300,"2025-05-09"]
["RPS-1258-2","Centrum voor Kinderzorg en Gezinsondersteuning","Koraal VZW","Kasteel Horst","Relighting/relamping","Antwerpen",24300,"2025-05-09"]
["RPS-1258-1","Centrum voor Kinderzorg en Gezinsondersteuning","Koraal VZW","Kasteel Horst","PV-panelen","Antwerpen",1321,"2025-05-09"]
["RPS-1258-4","Woonzorgcentrum","Sint-Barbara","Beversthuis","Relighting","Limburg",43224,"2025-05-09"]
["RPS-1258-3","Woonzorgcentrum","Sint-Barbara","Beversthuis","PV-panelen","Limburg",94200,"2025-05-09"]
["RPS-1258-5","Woonzorgcentrum","Sint-Barbara","Beversthuis","Relighting","Limburg",24000,"2025-05-09"]
["RPS-343-2","Subsidie-eenheid VAPH","Dominiek Savio Instituut vzw - De Tandem","Boskant Kouter","Dakisolatie","West-Vlaanderen",13608,"2025-05-09"]
["RPS-343-3","Subsidie-eenheid VAPH","Dominiek Savio Instituut vzw - De Tandem","Boskant Kouter","PV-panelen","West-Vlaanderen",7103,"2025-05-09"]
["RPS-820-3","Subsidie-eenheid VAPH","Dominiek Savio Instituut vzw - De Tandem","Koolskampstraat (gebouw 152)","PV-panelen","West-Vlaanderen",10956,"2025-05-09"]
["RPS-1259-1","Subsidie-eenheid VAPH","Dominiek Savio Instituut vzw - De Tandem","Koolskampstraat (Gebouw 154)","PV-panelen","West-Vlaanderen",16129,"2025-05-09"]
["RPS-1259-2","Subsidie-eenheid VAPH","Dominiek Savio Instituut vzw - De Tandem","Koolskampstraat (Gebouw 154)","Relighting/relamping","West-Vlaanderen",1466,"2025-05-09"]
["RPS-1260-2","Subsidie-eenheid VAPH","Dominiek Savio Instituut vzw - De Tandem","Koolskampstraat (gebouw 156)","Relighting/relamping","West-Vlaanderen",719,"2025-05-09"]
["RPS-1260-1","Subsidie-eenheid VAPH","Dominiek Savio Instituut vzw - De Tandem","Koolskampstraat (gebouw 156)","PV-panelen","West-Vlaanderen",2860,"2025-05-09"]
["RPS-821-2","Subsidie-eenheid VAPH","Dominiek Savio Instituut vzw - De Tandem","Koolskampstraat (Gebouw 170)","PV-panelen","West-Vlaanderen",4239,"2025-05-09"]
["RPS-822-3","Subsidie-eenheid VAPH","Dominiek Savio Instituut vzw - De Tandem","Koolskampstraat (Gebouw 180)","Schrijnwerkrenovatie","West-Vlaanderen",17400,"2025-05-09"]
["RPS-822-2","Subsidie-eenheid VAPH","Dominiek Savio Instituut vzw - De Tandem","Koolskampstraat (Gebouw 180)","PV-panelen","West-Vlaanderen",3842,"2025-05-09"]
["RPS-823-2","Subsidie-eenheid VAPH","Dominiek Savio Instituut vzw - De Tandem","Koolskampstraat (gebouw 320)","PV-panelen","West-Vlaanderen",11034,"2025-05-09"]
["RPS-823-3","Subsidie-eenheid VAPH","Dominiek Savio Instituut vzw - De Tandem","Koolskampstraat (gebouw 325)","PV-panelen","West-Vlaanderen",965,"2025-05-09"]
["RPS-1261-1","Subsidie-eenheid VAPH","De Lovie","De Seizoenen","PV-panelen","West-Vlaanderen",4487,"2025-05-09"]
["RPS-605-5","Subsidie-eenheid VAPH","De Lovie","Het Vijverhof loods-schuur","PV-panelen","West-Vlaanderen",15743,"2025-05-09"]
["RPS-1262-6","Subsidie-eenheid VAPH","De Lovie","Hoevestallen (18 - domein)","PV-panelen","West-Vlaanderen",16581,"2025-05-09"]
["RPS-608-3","Subsidie-eenheid VAPH","De Lovie","Matthijs","PV-panelen","West-Vlaanderen",18183,"2025-05-09"]
["RPS-1262-6","Subsidie-eenheid VAPH","De Lovie","Hoevestallen (18 - domein)","PV-panelen","West-Vlaanderen",16581,"2025-05-09"]
["RPS-613-12","Subsidie-eenheid VAPH","ozc Sint-Vincentius","vzw Ondersteunings-en zorgcentrum Sint-Vincentius","Relighting","Oost-Vlaanderen",115872.6,"2025-05-09"]
["RPE-1263-1","Algemeen ziekenhuis","Emmaüs","AZM/1","PV-panelen","Antwerpen",375000,"2025-05-09"]
["RPS-1263-2","Algemeen ziekenhuis","Emmaüs","AZM/1","PV-panelen","Antwerpen",46703,"2025-05-09"]
["RPS-1263-3","Algemeen ziekenhuis","Emmaüs","AZM/1","PV-panelen","Antwerpen",70977,"2025-05-09"]
["RPS-1112-5","Groepsopvang","De ukkies vzw","Erasmuslaan","Renovatie ventilatie","Limburg",30700,"2025-05-09"]
["RPS-1264-1","Organisatie voor Bijzondere Jeugdzorg","DE WAAIBURG","JAN RAP","PV-panelen","Antwerpen",1259,"2025-05-09"]
["RPS-1265-1","Organisatie voor Bijzondere Jeugdzorg","BLIJ LEVEN","Gebouw AB","PV-panelen","Oost-Vlaanderen",8896,"2025-05-09"]
["RPS-1217-6","Groepsopvang","Kinderopvang de Duinhuisjes","kinderdagverblijf de Duinhummeltjes","Spouwmuur","West-Vlaanderen",41577.19,"2025-05-09"]
["RPS-1217-5","Groepsopvang","Kinderopvang de Duinhuisjes","kinderdagverblijf de Duinhummeltjes","Relighting/relamping","West-Vlaanderen",3300,"2025-05-09"]
["RPS-1266-1","Groepsopvang","Kinderopvang de Duinhuisjes","Kinderdagverblijf De Peuterhaven","Relighting/relamping","West-Vlaanderen",4500,"2025-05-09"]
["RPS-1267-1","Groepsopvang","Kinderopvang de Duinhuisjes","t Bremhuisje","Relighting/relamping","West-Vlaanderen",6600,"2025-05-09"]
["RPS-19-3","Subsidie-eenheid VAPH","De Kade","Campus Spermalie","PV-panelen","West-Vlaanderen",17960,"2025-05-09"]
["RPS-1268-1","Subsidie-eenheid VAPH","De Kade","De Kade Elisabeth Zorghestraat 4","PV-panelen","West-Vlaanderen",5412,"2025-05-09"]
["RPS-1269-1","Subsidie-eenheid VAPH","De Kade","De Vlier","PV-panelen","West-Vlaanderen",1236,"2025-05-09"]
["RPS-1270-1","Subsidie-eenheid VAPH","De Kade","Ginkgo","PV-panelen","West-Vlaanderen",8413,"2025-05-09"]
["RPS-268-3","Subsidie-eenheid VAPH","De Kade","Het Vlot","PV-panelen","West-Vlaanderen",3866,"2025-05-09"]
["RPS-269-3","Subsidie-eenheid VAPH","De Kade","Oude Dorpsweg","PV-panelen","West-Vlaanderen",4339,"2025-05-09"]
["RPS-270-3","Subsidie-eenheid VAPH","De Kade","Pastorie","PV-panelen","West-Vlaanderen",2536,"2025-05-09"]
["RPS-271-5","Subsidie-eenheid VAPH","De Kade","Paviljoen 1","PV-panelen","West-Vlaanderen",2294,"2025-05-09"]
["RPS-1271-2","Groepsopvang","Mezennestje","Mezennestje vzw","Overige","West-Vlaanderen",2980,"2025-05-09"]
["RPS-1271-4","Groepsopvang","Mezennestje","Mezennestje vzw","Regeltechnisch","West-Vlaanderen",660,"2025-05-09"]
["RPS-1271-3","Groepsopvang","Mezennestje","Mezennestje vzw","PV-panelen","West-Vlaanderen",591,"2025-05-09"]
["RPS-1271-1","Groepsopvang","Mezennestje","Mezennestje vzw","Isoleren pompen/kranen/hydraulica","West-Vlaanderen",2730,"2025-05-09"]
["RPS-1272-1","Subsidie-eenheid VAPH","Oranje","O´berge","PV-panelen","West-Vlaanderen",1372,"2025-05-09"]
["RPS-1273-2","Organisatie voor Bijzondere Jeugdzorg","JONGERENZORG ZUID-WEST-VLAANDEREN","Aventurijn","Relamping","West-Vlaanderen",591.6,"2025-05-09"]
["RPS-1273-3","Organisatie voor Bijzondere Jeugdzorg","JONGERENZORG ZUID-WEST-VLAANDEREN","Aventurijn","Relighting","West-Vlaanderen",174,"2025-05-09"]
["RPS-1273-4","Organisatie voor Bijzondere Jeugdzorg","JONGERENZORG ZUID-WEST-VLAANDEREN","Aventurijn","Relighting","West-Vlaanderen",199,"2025-05-09"]
["RPS-1273-5","Organisatie voor Bijzondere Jeugdzorg","JONGERENZORG ZUID-WEST-VLAANDEREN","Aventurijn","Relighting","West-Vlaanderen",1537.8,"2025-05-09"]
["RPS-1273-6","Organisatie voor Bijzondere Jeugdzorg","JONGERENZORG ZUID-WEST-VLAANDEREN","Aventurijn","Relighting","West-Vlaanderen",185.4,"2025-05-09"]
["RPS-1273-7","Organisatie voor Bijzondere Jeugdzorg","JONGERENZORG ZUID-WEST-VLAANDEREN","Aventurijn","Relighting","West-Vlaanderen",357,"2025-05-09"]
["RPS-1273-1","Organisatie voor Bijzondere Jeugdzorg","JONGERENZORG ZUID-WEST-VLAANDEREN","Aventurijn","PV-panelen","West-Vlaanderen",3989,"2025-05-09"]
["RPS-888-2","Organisatie voor Bijzondere Jeugdzorg","De Oever","VZW De Oever - Centraal gebouw","Relighting","Limburg",3383,"2025-05-09"]
["RPS-889-3","Organisatie voor Bijzondere Jeugdzorg","De Oever","VZW De Oever - Kidscampus","PV-panelen","Limburg",4469,"2025-05-09"]
["RPS-890-4","Groepsopvang","VZW KINDEROPVANG 'T EEKHOORNTJE","Kinderopvang 't Eekhoorntje","PV-panelen","Vlaams-Brabant",4000,"2025-05-09"]
["RPS-1274-1","Subsidie-eenheid VAPH","Centrum voor Jongens en Meisjes met individuele Begeleiding","Krauwelenhof","PV-panelen","Antwerpen",853,"2025-05-09"]
["RPS-1274-2","Subsidie-eenheid VAPH","Centrum voor Jongens en Meisjes met individuele Begeleiding","Krauwelenhof","PV-panelen","Antwerpen",1968,"2025-05-09"]
["RPS-245-2","Woonzorgcentrum","WOONZORGCENTRUM ST. VINCENTIUS","WZC Sint-Vincentius vzw","PV-panelen","Antwerpen",14239,"2025-05-09"]
["RPE-113-14","Algemeen ziekenhuis","Katholieke Universiteit te Leuven","UZ Leuven - Campus Gasthuisberg","PV-panelen","Vlaams-Brabant",433052.5,"2025-05-09"]
["RPS-1120-3","Subsidie-eenheid VAPH","Ubuntu Achtkanter","Beeklaan 79","Relighting/relamping","West-Vlaanderen",10230,"2025-05-09"]
["RPS-1120-2","Subsidie-eenheid VAPH","Ubuntu Achtkanter","Beeklaan 79","PV-panelen","West-Vlaanderen",899,"2025-05-09"]
["RPS-1275-1","Subsidie-eenheid VAPH","Ubuntu Achtkanter","Beeklaan 79 a","Relighting/relamping","West-Vlaanderen",5287,"2025-05-09"]
["RPS-1276-1","Subsidie-eenheid VAPH","Ubuntu Achtkanter","Beukenlaan 47","PV-panelen","West-Vlaanderen",13386,"2025-05-09"]
["RPS-1276-2","Subsidie-eenheid VAPH","Ubuntu Achtkanter","Beukenlaan 47","Relighting/relamping","West-Vlaanderen",7190,"2025-05-09"]
["RPS-1221-5","Subsidie-eenheid VAPH","Ubuntu Achtkanter","Blokkestraat 29","Relighting/relamping","West-Vlaanderen",10509,"2025-05-09"]
["RPS-1221-4","Subsidie-eenheid VAPH","Ubuntu Achtkanter","Blokkestraat 29","PV-panelen","West-Vlaanderen",2372,"2025-05-09"]
["RPS-1222-3","Subsidie-eenheid VAPH","Ubuntu Achtkanter","Julius Sabbestraat 45","Relighting/relamping","West-Vlaanderen",4830,"2025-05-09"]
["RPS-1277-1","Subsidie-eenheid VAPH","Ubuntu Achtkanter","Plein 25","Relighting/relamping","West-Vlaanderen",831,"2025-05-09"]
["RPS-1278-1","Subsidie-eenheid VAPH","Ubuntu Achtkanter","Plein 33","Relighting","West-Vlaanderen",706,"2025-05-09"]
["RPS-1279-1","Subsidie-eenheid VAPH","Ubuntu Achtkanter","Plein 34","Relighting","West-Vlaanderen",108,"2025-05-09"]
["RPS-1280-1","Subsidie-eenheid VAPH","Ubuntu Achtkanter","Plein 36","Relighting","West-Vlaanderen",332,"2025-05-09"]
["RPS-1225-3","Subsidie-eenheid VAPH","Ubuntu Achtkanter","Sint Denijseweg 71","PV-panelen","West-Vlaanderen",18350,"2025-05-09"]
["RPS-1225-4","Subsidie-eenheid VAPH","Ubuntu Achtkanter","Sint Denijseweg 71","Relighting/relamping","West-Vlaanderen",15360,"2025-05-09"]
["RPS-906-7","Subsidie-eenheid VAPH","PEGODE vzw","WH Schilde","PV-panelen","Antwerpen",12297,"2025-05-09"]
["RPS-1281-1","Organisatie voor naadloze flexibele trajecten onderwijs - welzijn","Lejo","Lejo Gent","PV-panelen","Antwerpen",23819,"2025-05-09"]
["RPS-1281-2","Organisatie voor naadloze flexibele trajecten onderwijs - welzijn","Lejo","Lejo Gent","Relighting","Antwerpen",9170.4,"2025-05-09"]
["RPS-654-6","Psychiatrisch ziekenhuis","Psychiatrisch Centrum Sint-Hiëronymus","PC Sint-Hieronymus","PV-panelen","Oost-Vlaanderen",4938,"2025-05-09"]
["RPS-285-5","Woonzorgcentrum","Goddelijke Voorzienigheid - Vereniging voor Huisvesting en Verzorging van Bejaarden","vzw Goddelijke Voorzienigheid","PV-panelen","Vlaams-Brabant",14171,"2025-05-09"]
["RPS-918-6","Subsidie-eenheid VAPH","DE VIJVER","De Hoeve Activiteitencentrum","Relighting/relamping","Antwerpen",2000,"2025-05-09"]
["RPS-1282-1","Subsidie-eenheid VAPH","DE VIJVER","De Lelie","Relighting/relamping","Antwerpen",5597,"2025-05-09"]
["RPS-1283-1","Subsidie-eenheid VAPH","DE VIJVER","Drakenhof","Relighting/relamping","Antwerpen",1566,"2025-05-09"]
["RPS-1135-2","Subsidie-eenheid VAPH","DE VIJVER","Hoekhuis","Relighting/relamping","Antwerpen",282,"2025-05-09"]
["RPS-663-2","Subsidie-eenheid VAPH","DE VIJVER","Hoofdgebouw Dorp vzw","Relighting/relamping","Antwerpen",22800,"2025-05-09"]
["RPS-1136-2","Subsidie-eenheid VAPH","DE VIJVER","Rijhuis","Relighting/relamping","Antwerpen",318,"2025-05-09"]
["RPS-1284-1","Subsidie-eenheid VAPH","DE VIJVER","Tyrolerhof","Relighting/relamping","Antwerpen",949,"2025-05-09"]
["RPS-665-13","Subsidie-eenheid VAPH","Mariënstede vzw","vzw Mariënstede","PV-panelen","West-Vlaanderen",2758,"2025-05-09"]
["RPS-945-6","Subsidie-eenheid VAPH","Mariënstede vzw","De HUizen","PV-panelen","West-Vlaanderen",2987,"2025-05-09"]
["RPS-1285-1","Woonzorgcentrum","Maria Middelares","MARIA MIDDELARES- Gebouw 31149047","PV-panelen","West-Vlaanderen",14559,"2025-05-09"]
["RPS-1286-1","Subsidie-eenheid VAPH","Talander vzw","Talander","Monitoring","Antwerpen",789,"2025-05-09"]
["RPS-1286-2","Subsidie-eenheid VAPH","Talander vzw","Talander","Warmtepompen en koeling","Antwerpen",18000,"2025-05-09"]
["RPS-1286-3","Subsidie-eenheid VAPH","Talander vzw","Talander","Warmtepompen en koeling","Antwerpen",10800,"2025-05-09"]
["RPS-465-3","Subsidie-eenheid VAPH","Centrum van de Oostkust voor Revalidatie en Welzijnszorg","De Klinker","Comfortverhoging","West-Vlaanderen",114000,"2025-05-09"]
["RPS-465-4","Subsidie-eenheid VAPH","Centrum van de Oostkust voor Revalidatie en Welzijnszorg","De Klinker","PV-panelen","West-Vlaanderen",5961,"2025-05-09"]
["RPS-466-2","Subsidie-eenheid VAPH","Centrum van de Oostkust voor Revalidatie en Welzijnszorg","Het Baken","Relighting","West-Vlaanderen",6720,"2025-05-09"]
["RPS-1287-1","Subsidie-eenheid VAPH","Centrum van de Oostkust voor Revalidatie en Welzijnszorg","Het Vlot","Relighting","West-Vlaanderen",2400,"2025-05-09"]
["RPS-679-10","Woonzorgcentrum","RUSTHUIS STRIJLAND","WZC Strijland","Relighting/relamping","Vlaams-Brabant",6480,"2025-05-09"]
["RPS-679-8","Woonzorgcentrum","RUSTHUIS STRIJLAND","WZC Strijland","Dakisolatie","Vlaams-Brabant",1170,"2025-05-09"]
["RPS-679-9","Woonzorgcentrum","RUSTHUIS STRIJLAND","WZC Strijland","PV-panelen","Vlaams-Brabant",2159,"2025-05-09"]
["RPS-1288-1","Subsidie-eenheid VAPH","Inspirant in't Dorp","Inspirant in 't dorp - HTH (atelier en stal)","Relamping","West-Vlaanderen",1826,"2025-05-09"]
["RPS-1289-2","Subsidie-eenheid VAPH","Inspirant in't Dorp","Inspirant in 't dorp - HTH (atelier en stal)","Relighting","West-Vlaanderen",7914,"2025-05-09"]
["RPS-1290-3","Subsidie-eenheid VAPH","Inspirant in't Dorp","Inspirant in 't dorp - HTH (huis en loods)","Relighting","West-Vlaanderen",4587.6000000000004,"2025-05-09"]
["RPS-1291-4","Subsidie-eenheid VAPH","Inspirant in't Dorp","Inspirant in 't dorp - HTH (huis en loods)","Relighting","West-Vlaanderen",3439,"2025-05-09"]
["RPS-1292-1","Subsidie-eenheid VAPH","Inspirant in't Dorp","Inspirant in 't dorp - MKL 2","PV-panelen","West-Vlaanderen",4513,"2025-05-09"]
["RPS-1293-1","Subsidie-eenheid VAPH","Inspirant in't Dorp","Inspirant in 't dorp - Vincentlaan","PV-panelen","West-Vlaanderen",2669,"2025-05-09"]
["RPS-1294-1","Subsidie-eenheid VAPH","Inspirant in't Dorp","Inspirant in 't dorp- ELZ 3","PV-panelen","West-Vlaanderen",3636,"2025-05-09"]
["RPS-372-3","Woonzorgcentrum","Résidence Marie-Astrid","NV RESIDENCE MARIE-ASTRID","PV-panelen","West-Vlaanderen",11748,"2025-05-09"]
["RPS-1065-5","Subsidie-eenheid VAPH","VZW Kompas - dagcentrum","VZW Kompas Omega","PV-panelen","Oost-Vlaanderen",357,"2025-05-09"]
["RPS-1295-1","Algemeen ziekenhuis","Sint-Trudo Ziekenhuis","Campus Rummenweg","PV-panelen","Limburg",4701,"2025-05-09"]
["RPS-1296-1","Algemeen ziekenhuis","Sint-Trudo Ziekenhuis","Campus Sint-Jozef","Relighting/relamping","Limburg",22298,"2025-05-09"]
["RPE-1297-3","Woonzorgcentrum","Curando O.L.V. van 7 weeën Ruiselede vzw","De Torre","Regeltechnisch","West-Vlaanderen",2331,"2025-05-09"]
["RPE-1297-1","Woonzorgcentrum","Curando O.L.V. van 7 weeën Ruiselede vzw","De Torre","Dakisolatie hellend dak","West-Vlaanderen",204337.8,"2025-05-09"]
["RPE-1297-2","Woonzorgcentrum","Curando O.L.V. van 7 weeën Ruiselede vzw","De Torre","Dakisolatie plat dak","West-Vlaanderen",10835.1,"2025-05-09"]
["RPE-1297-5","Woonzorgcentrum","Curando O.L.V. van 7 weeën Ruiselede vzw","De Torre","Stookplaatsrenovatie","West-Vlaanderen",82206,"2025-05-09"]
["RPS-1297-4","Woonzorgcentrum","Curando O.L.V. van 7 weeën Ruiselede vzw","De Torre","Schrijnwerkrenovatie Hout","West-Vlaanderen",123171,"2025-05-09"]
["RPS-1298-1","Beschut wonen","De Hulster","Statiestraat","PV-panelen","Vlaams-Brabant",2580,"2025-05-09"]
["RPS-725-7","Beschut wonen","DE HULSTER","Vaart","PV-panelen","Vlaams-Brabant",3989,"2025-05-09"]
["RPS-1299-1","Woonzorgcentrum","Zorgnetwerk Trento","Campus De Vliet","Isoleren pompen/kranen/hydraulica","Oost-Vlaanderen",2404,"2025-05-09"]
["RPS-1299-2","Woonzorgcentrum","Zorgnetwerk Trento","Campus De Vliet","Monitoring","Oost-Vlaanderen",2115,"2025-05-09"]
["RPS-1299-4","Woonzorgcentrum","Zorgnetwerk Trento","Campus De Vliet","Relighting/relamping","Oost-Vlaanderen",20834,"2025-05-09"]
["RPS-1299-5","Woonzorgcentrum","Zorgnetwerk Trento","Campus De Vliet","Renovatie beglazing","Oost-Vlaanderen",1350,"2025-05-09"]
["RPS-1299-3","Woonzorgcentrum","Zorgnetwerk Trento","Campus De Vliet","PV-panelen","Oost-Vlaanderen",30890,"2025-05-09"]
["RPS-1300-1","Woonzorgcentrum","Zorgnetwerk Trento","Campus De Vliet - Nieuwbouw","Monitoring","Oost-Vlaanderen",824,"2025-05-09"]
["RPS-1301-3","Woonzorgcentrum","Zorgnetwerk Trento","Campus Sint-Jozef","Relighting/relamping","Oost-Vlaanderen",392,"2025-05-09"]
["RPS-1301-4","Woonzorgcentrum","Zorgnetwerk Trento","Campus Sint-Jozef","Relighting/relamping","Oost-Vlaanderen",7128,"2025-05-09"]
["RPS-1301-2","Woonzorgcentrum","Zorgnetwerk Trento","Campus Sint-Jozef","Regeltechn.ventilatie","Oost-Vlaanderen",3360,"2025-05-09"]
["RPS-1301-1","Woonzorgcentrum","Zorgnetwerk Trento","Campus Sint-Jozef","PV-panelen","Oost-Vlaanderen",5675,"2025-05-09"]
["RPS-1302-1","Woonzorgcentrum","Zorgnetwerk Trento","Campus Sint-Jozef afdeling den blancquaert","Isoleren pompen/kranen/hydraulica","Oost-Vlaanderen",1618,"2025-05-09"]
["RPS-1302-3","Woonzorgcentrum","Zorgnetwerk Trento","Campus Sint-Jozef afdeling den blancquaert","Regeltechn.ventilatie","Oost-Vlaanderen",1065,"2025-05-09"]
["RPS-1302-4","Woonzorgcentrum","Zorgnetwerk Trento","Campus Sint-Jozef afdeling den blancquaert","Relighting/relamping","Oost-Vlaanderen",14304,"2025-05-09"]
["RPS-1302-2","Woonzorgcentrum","Zorgnetwerk Trento","Campus Sint-Jozef afdeling den blancquaert","PV-panelen","Oost-Vlaanderen",3458,"2025-05-09"]
["RPS-1303-1","Woonzorgcentrum","DE GAVERMEERSEN","WZC Heilige Familie - SENIORENZORG HEILIGE FAMILIE","Relighting","West-Vlaanderen",15743,"2025-05-09"]
["RPS-1326-1","Woonzorgcentrum","Vlaspand","WZC Vlaspand","Isoleren pompen/kranen/hydraulica","Antwerpen",1147,"2025-05-09"]
["RPS-1326-2","Woonzorgcentrum","Vlaspand","WZC Vlaspand","PV-panelen","Antwerpen",3729,"2025-05-09"]
["RPS-1326-3","Woonzorgcentrum","Vlaspand","WZC Vlaspand","Relighting","Antwerpen",37477,"2025-05-09"]
["RPS-1326-4","Woonzorgcentrum","Vlaspand","WZC Vlaspand","Renovatie ventilatie","Antwerpen",18683,"2025-05-09"]
["RPS-1304-1","Woonzorgcentrum","DE GROENE VERTE WOON EN ZORG","De Groene Verte woonzorgcentrum","PV-panelen","West-Vlaanderen",20346,"2025-05-09"]
["RPS-1305-1","Psychiatrisch ziekenhuis","GEZONDHEIDSZORG 'BERMHERTIGHEID JESU'","B - PTC Rustenburg","Duurzame energieopslag","West-Vlaanderen",43200,"2025-05-09"]
["RPS-1305-2","Psychiatrisch ziekenhuis","GEZONDHEIDSZORG 'BERMHERTIGHEID JESU'","B - PTC Rustenburg","PV-panelen","West-Vlaanderen",16223,"2025-05-09"]
["RPS-1306-1","Psychiatrisch ziekenhuis","GEZONDHEIDSZORG 'BERMHERTIGHEID JESU'","B - PZ Onzelievevrouw","Duurzame energieopslag","West-Vlaanderen",54327,"2025-05-09"]
["RPS-1307-1","Psychiatrisch ziekenhuis","GEZONDHEIDSZORG 'BERMHERTIGHEID JESU'","I-POP - PZ Heilig Hart","Duurzame energieopslag","West-Vlaanderen",54922,"2025-05-09"]
["RPS-1307-2","Psychiatrisch ziekenhuis","GEZONDHEIDSZORG 'BERMHERTIGHEID JESU'","I-POP - PZ Heilig Hart","PV-panelen","West-Vlaanderen",227693,"2025-05-09"]
["RPS-1308-1","Psychiatrisch verzorgingstehuis","GEZONDHEIDSZORG 'BERMHERTIGHEID JESU'","I-TUL - PVT Het Tempelhof","PV-panelen","West-Vlaanderen",7587,"2025-05-09"]
["RPS-1308-2","Psychiatrisch verzorgingstehuis","GEZONDHEIDSZORG 'BERMHERTIGHEID JESU'","I-TUL - PVT Het Tempelhof","PV-panelen","West-Vlaanderen",29651,"2025-05-09"]
["RPS-1309-1","Centrum voor Kortverblijf","Zorg-Saam Zusters Kindsheid Jesu","WZC Sint Antonius","PV-panelen","Oost-Vlaanderen",48739,"2025-05-09"]
["RPS-1310-1","Woonzorgcentrum","Zorg-Saam Zusters Kindsheid Jesu","WZC Sint Elisabeth","PV-panelen","Oost-Vlaanderen",24019,"2025-05-09"]
["RPE-1311-1","Algemeen ziekenhuis","Algemeen Ziekenhuis Groeninge","Blok F","Stookplaatsrenovatie","West-Vlaanderen",92975,"2025-05-09"]
["RPE-1186-5","Algemeen ziekenhuis","Algemeen Ziekenhuis Groeninge","Campus Kennedylaan","Warmtepompen en koeling","West-Vlaanderen",87809.75,"2025-05-09"]
["RPS-1186-4","Algemeen ziekenhuis","Algemeen Ziekenhuis Groeninge","Campus Kennedylaan","Regeltechnisch","West-Vlaanderen",32467.73,"2025-05-09"]
["RPS-1186-2","Algemeen ziekenhuis","Algemeen Ziekenhuis Groeninge","Campus Kennedylaan","Monitoring","West-Vlaanderen",10422.27,"2025-05-09"]
["RPS-1186-3","Algemeen ziekenhuis","Algemeen Ziekenhuis Groeninge","Campus Kennedylaan","Overige","West-Vlaanderen",598326,"2025-05-09"]
["RPS-1312-1","Groepsopvang","Kinderdagverblijf Kabouterland vzw","Kabouterland - KINDERDAGVERBLIJF KABOUTERLAND","Stookplaatsrenovatie","Vlaams-Brabant",11376,"2025-05-09"]
["RPS-751-10","Algemeen ziekenhuis","Algemeen Ziekenhuis Delta","AZ Delta Roeselare","Relighting/relamping","West-Vlaanderen",112560,"2025-05-09"]
["RPS-752-8","Algemeen ziekenhuis","Algemeen Ziekenhuis Delta","AZ Delta Torhout","Relighting/relamping","West-Vlaanderen",134400,"2025-05-09"]
["RPS-1238-4","Subsidie-eenheid VAPH","MeeGaan","tBruut","PV-panelen","Vlaams-Brabant",10534,"2025-05-09"]
["RPS-1238-5","Subsidie-eenheid VAPH","MeeGaan","tBruut","Relighting","Vlaams-Brabant",468,"2025-05-09"]
["RPS-1313-1","Lokaal dienstencentrum","Woon- en Zorgbedrijf Wervik","Dienstencentrum De Spie","PV-panelen","West-Vlaanderen",7216,"2025-05-09"]
["RPS-1314-1","Centrum voor Herstelverblijf","Woon- en Zorgbedrijf Wervik","Sint-Janshospitaal","Isoleren pompen/kranen/hydraulica","West-Vlaanderen",1817,"2025-05-09"]
["RPS-1314-2","Centrum voor Herstelverblijf","Woon- en Zorgbedrijf Wervik","Sint-Janshospitaal","Vervangen pompen","West-Vlaanderen",2400,"2025-05-09"]
["RPS-1315-1","Centrum voor dagverzorging","WZG Voorkempen","Dagverzorgingscentrum 't Dorp","Relighting/relamping","Antwerpen",684,"2025-05-09"]
["RPS-1315-2","Centrum voor dagverzorging","WZG Voorkempen","Dagverzorgingscentrum 't Dorp","Relighting/relamping","Antwerpen",443,"2025-05-09"]
["RPS-1316-1","Psychiatrisch ziekenhuis","Groep Philippus Neri Geestelijke Gezondheidszorg","De Pelgrim","Isoleren leidingen","Oost-Vlaanderen",545,"2025-05-09"]
["RPS-963-8","Psychiatrisch ziekenhuis","Groep Philippus Neri Geestelijke Gezondheidszorg","Gebouw D, DA, E, F, H","Relighting/relamping","Oost-Vlaanderen",71895.600000000006,"2025-05-09"]
["RPS-963-9","Psychiatrisch ziekenhuis","Groep Philippus Neri Geestelijke Gezondheidszorg","Gebouw D, DA, E, F, H","Relighting/relamping","Oost-Vlaanderen",71191.8,"2025-05-09"]
["RPS-963-10","Psychiatrisch ziekenhuis","Groep Philippus Neri Geestelijke Gezondheidszorg","Gebouw D, DA, E, F, H","Renovatie ventilatie","Oost-Vlaanderen",33433.800000000003,"2025-05-09"]
["RPS-778-5","Psychiatrisch ziekenhuis","Groep Philippus Neri Geestelijke Gezondheidszorg","Gebouw I","Relighting/relamping","Oost-Vlaanderen",4132.2,"2025-05-09"]
["RPS-778-6","Psychiatrisch ziekenhuis","Groep Philippus Neri Geestelijke Gezondheidszorg","Gebouw I","Relighting/relamping","Oost-Vlaanderen",71496.600000000006,"2025-05-09"]
["RPS-778-4","Psychiatrisch ziekenhuis","Groep Philippus Neri Geestelijke Gezondheidszorg","Gebouw I","Isoleren pompen/kranen/hydraulica","Oost-Vlaanderen",652,"2025-05-09"]
["RPS-1317-1","Psychiatrisch ziekenhuis","Groep Philippus Neri Geestelijke Gezondheidszorg","Onthaal en cafetaria","Isoleren leidingen","Oost-Vlaanderen",2108,"2025-05-09"]
["RPS-1317-2","Psychiatrisch ziekenhuis","Groep Philippus Neri Geestelijke Gezondheidszorg","Onthaal en cafetaria","Relighting/relamping","Oost-Vlaanderen",249,"2025-05-09"]
["RPS-780-7","Psychiatrisch ziekenhuis","Groep Philippus Neri Geestelijke Gezondheidszorg","Paviljoen A, B, C, G","Relighting/relamping","Oost-Vlaanderen",64048.800000000003,"2025-05-09"]
["RPS-780-8","Psychiatrisch ziekenhuis","Groep Philippus Neri Geestelijke Gezondheidszorg","Paviljoen A, B, C, G","Relighting/relamping","Oost-Vlaanderen",55359.6,"2025-05-09"]
["RPS-780-9","Psychiatrisch ziekenhuis","Groep Philippus Neri Geestelijke Gezondheidszorg","Paviljoen A, B, C, G","Relighting/relamping","Oost-Vlaanderen",11904,"2025-05-09"]
["RPS-964-3","Psychiatrisch ziekenhuis","Groep Philippus Neri Geestelijke Gezondheidszorg","PVT Casa Neri","Relighting/relamping","Oost-Vlaanderen",2183.4,"2025-05-09"]
["RPS-1318-1","Centrum voor Kortverblijf","WOONZORGNETWERK SPIRIT","WZC Avondrust-verwijderen","PV-panelen","West-Vlaanderen",21380,"2025-05-09"]
["RPS-1319-1","Woonzorgcentrum","WOONZORGNETWERK SPIRIT","WZC Regina Coeli","PV-panelen","West-Vlaanderen",22875,"2025-05-09"]
["RPS-1195-2","Woonzorgcentrum","WOONZORGNETWERK SPIRIT","WZC Sint Godelieve","PV-panelen","West-Vlaanderen",41592,"2025-05-09"]
["RPS-1324-2","Algemeen ziekenhuis","AZORG","ASZ Aalst","Renovatie SWW","Oost-Vlaanderen",43707,"2025-05-09"]
["RPS-1324-1","Algemeen ziekenhuis","AZORG","ASZ Aalst","PV-panelen","Oost-Vlaanderen",172057.7,"2025-05-09"]
["RPS-1325-1","Algemeen ziekenhuis","AZORG","ASZ Geraardsbergen","Renovatie SWW","Oost-Vlaanderen",6921,"2025-05-09"]
["RPS-1320-1","Psychiatrisch ziekenhuis","OPENBAAR PSYCHIATRISCH ZORGCENTRUM GEEL","Gebouw 2012 Pas 230","PV-panelen","Antwerpen",5368,"2025-05-09"]
["RPS-1321-1","Subsidie-eenheid VAPH","De Bolster","De Bolster Zwalm : De Boskant","Monitoring","Oost-Vlaanderen",1880,"2025-05-09"]
["RPS-1321-2","Subsidie-eenheid VAPH","De Bolster","De Bolster Zwalm : De Boskant","Vervangen pompen","Oost-Vlaanderen",4200,"2025-05-09"]
["RPS-1322-2","Woonzorgcentrum","Het Dak - WZC De Noordhinder","Het Dak - Rusthuis de Noordhinder","Relighting","West-Vlaanderen",81000,"2025-05-09"]
["RPS-1322-3","Woonzorgcentrum","Het Dak - WZC De Noordhinder","Het Dak - Rusthuis de Noordhinder","Relighting","West-Vlaanderen",55800,"2025-05-09"]
["RPS-1322-1","Woonzorgcentrum","Het Dak - WZC De Noordhinder","Het Dak - Rusthuis de Noordhinder","PV-panelen","West-Vlaanderen",12772,"2025-05-09"]
["RPS-1323-1","Algemeen ziekenhuis","AZ TURNHOUT","Campus Sint Elisabeth Hoofdgebouw","PV-panelen","Antwerpen",91265,"2025-05-09"]
["RPS-875-2","Groepsopvang samenwerking","Gemeente Koksijde","De Dunevoetjes","PV-panelen","West-Vlaanderen",1381,"2025-05-09"]
[null,null,null,null,"Totaal goedgekeurde investeringen",null,{"$f":"SUM(G5:G260)","v":6901869.7399999984}]

{"sheet":"Infrastructuurforfait PMH","index":3,"n_rows":28,"n_cols":41,"rows_kept":28,"cut":false,"hidden":false,"merged":[[0,0,0,8],[1,0,1,8],[18,1,18,2],[2,0,2,8]]}
["Goedgekeurde projecten persoonsvolgende financiering van 1 januari tot 30 november 2025"]
["Infrastructuurforfait personen met een handicap: Deze betoelagingsvorm is van toepassing voor de meerderjarige personen met een handicap. Een voorziening kan een vraag indienen tot het bekomen van een akkoord infrastructuurforfait voor een beoogde investering. Zodra desbetreffende infrastructuur in gebruik wordt genomen, start de uitbetaling van het infrastructuurforfait. De grootte van dat forfait is afhankelijk van de zorgzwaarte van de personen met een handicap die gebruik maakt van de infrastructuur en wordt aangepast aan de bezetting. Rekening houdend met voorgaande elementen wordt het forfait voor onbepaalde duur jaarlijks uitbetaald zolang er bezetting is. Het forfait moet door de voorziening als korting doorgerekend worden naar de persoon met een handicap. Het forfait wordt jaarlijks aangerekend op de VIPA-kredieten op het moment van uitbetaling. Het overzicht bevat de voorzieningen die in 2025 een akkoord infrastructuurforfait verkregen. De betaling van subsidies zal dus voor deze projecten starten vanaf ingebruikname."]
["Frequentie van actualisatie van deze lijst: als er een oproep is geweest en de middelen daarvoor zijn vastgelegd (1 keer per jaar)."]
["Dossiernummer","Provincie","Gemeente","Initiatiefnemer","Voorziening","Project","Globale investeringskost all-in \n(BTW + studiekosten) \ndoor de voorziening opgegeven","Verleende infrastructuurforfaits","Goedkeuring"]
["PH907-W-IDB","West-Vlaanderen","Brugge","Viro vzw","Viro","nieuwbouw voor volwassenen met een verstandelijke beperking met 20 kamers en 4 studio' s voor 24 gebruikers met woonondersteuning (capaciteitsvervanging) en voor 26,91 gebruikers met collectieve zorg in de Koning Albert I-laan 188 in Brugge (Sint-Michiels-Brugge)",5287047,101022.11,"2025-02-10"]
["PH905-A-IDB","Antwerpen","Zoersel","Emmaüs vzw","Monnikenheide-Spectrum","nieuwbouw en verbouwing voor 27 gebruikers met woonondersteuning en collectieve zorg en voor 26,65 gebruikers met dagondersteuning, project Gildenhuis, in de Stationsstraat 57-59-61 in Essen ",9300000,159532.16,"2025-03-24"]
["PH909-O-IDB","Oost-Vlaanderen","Sint-Niklaas","De Klokke vzw","De Klokke","nieuwbouw voor 8 gebruikers met woonondersteuning en collectieve zorg en voor 2 gebruikers met dagondersteuning (allemaal capaciteitsuitbreiding) in de Meerstraat 39 in Stekene",1913934,35687.519999999997,"2025-03-24"]
["PH869-B-IDB","Vlaams-Brabant","Roosdaal","Zonnelied vzw","Zonnelied","nieuwbouw voor project De Schakel voor 35 gebruikers met woonondersteuning en voor 17,66 gebruikers met collectieve zorg in de Frans Baetensstraat 55 in Lennik",5300000,107508.54,"2025-04-14"]
["PH903-W-IDB","West-Vlaanderen","Jabbeke","Huis Snello vzw","Toontjeshuis","nieuwbouw voor 14 gebruikers met woonondersteuning en collectieve zorg en voor 1 gebruiker met dagondersteuning (allemaal capaciteitsuitbreiding) in de Oudenburgweg 42A in Jabbeke (Varsenare)",3259314,57542.76,"2025-04-29"]
["PH778-tris-A-MCI-PVF","Antwerpen","Ranst","Emmaüs vzw ","Dienstverleningscentrum Zevenbergen","nieuwbouw voor 31 plaatsen met woonondersteuning en voor 6,44 plaatsen met collectieve zorg in de Boerenkrijglaan 25 in Ranst",5569281,79508.179999999993,"2025-05-13"]
["PH906-A-IDB","Antwerpen","Niel","Pegode vzw","Pegode","ingrijpende duurzame verbouwing en nieuwbouw voor 53,92 gebruikers met dagondersteuning (capaciteitsvervanging) in de Rooseveltstraat 26 in Niel",4234728,105907.51,"2025-05-13"]
["PH913-O-IDB","Oost-Vlaanderen","Lievegem","Dienstverleningscentrum De Triangel vzw","Dienstverleningscentrum De Triangel","nieuwbouw (vervanging) voor het Dienstverleningscentrum De Triangel voor 37 gebruikers met woonondersteuning en voor 12,49 gebruikers met collectieve zorg (beide capaciteitsvervanging) in de Molendreef 16 in Lievegem",19900000,98502.09,"2025-05-13"]
["PH915-W-IDB","West-Vlaanderen","Poperinge","De Lovie vzw","De Lovie","nieuwbouw voor 38 gebruikers met woonondersteuning en voor 17,22 gebruikers met collectieve zorg (capaciteitsvervanging) voor het project 'Bomensite 2' op het woonpark De Lovie in de Krombeekseweg 82 in Poperinge",7000000,109835.23,"2025-06-03"]
["PH920-O-IDB","Oost-Vlaanderen","Deinze","Leieborg vzw","Leieborg","aankoop met verbouwing voor 78 gebruikers met woonondersteuning (capaciteitsvervanging) en voor 46,98 gebruikers met collectieve zorg op het domein De Nieuwe Ceder in de Parijsestraat 34 in Deinze",20500000,248416.86,"2025-09-02"]
["PH918-L-IDB","Limburg","Hasselt","Organisatie Broeders van Liefde vzw","Orthopedagogisch Centrum Sint-Ferdinand","verbouwing van het tehuis Den Heuvel Hasselt voor 12 gebruikers met woonondersteuning (11 capaciteitsvervanging en 1 capaciteitsuitbreiding) en voor 7,62 gebruikers met collectieve zorg op de Luikersteenweg 179 in Hasselt",1528378,38992.42,"2025-10-11"]
["PH914-W-IDB","West-Vlaanderen","Brugge","Toontjeshuis geDREven vzw","Ouderinitiatief Toontjeshuis geDREven","nieuwbouw voor 15 gebruikers met woonondersteuning en voor 8,81 gebruikers collectieve zorg (alles capaciteitsuitbreiding) in de Middelburgsteenweg 11A in Damme (Moerkerke)",3164837,47329.07,"2025-10-27",null,null,null,null,null,null,null,null,null,null,null,null,null,null,null,null,null,null,null,null,null,null,null,null,null,null,null,null,null,null,null,{"$f":"IF(AM16<>\"\",\"A\",IF(M16<>\"\",\"B\",IF(#REF!<>\"\",\"C\",IF(L16<>\"\",\"D\",IF(K16<>\"\",\"E\",IF(AN16<>\"\",\"F\",\"G\"))))))","v":{"$error":"#REF!"}}]
[null,null,null,null,null,"Totaal goedgekeurde investeringen",null,{"$f":"SUM(H5:H16)","v":1189784.45}]
[]
[null,"Overzicht per provincie "]
[null,"Antwerpen",{"$f":"SUMIF($B$5:$B$18,B20,$H$5:$H$18)","v":344947.85}]
[null,"Limburg",{"$f":"SUMIF($B$5:$B$18,B21,$H$5:$H$18)","v":38992.42}]
[null,"Oost-Vlaanderen",{"$f":"SUMIF($B$5:$B$18,B22,$H$5:$H$18)","v":382606.47}]
[null,"Vlaams-Brabant",{"$f":"SUMIF($B$5:$B$18,B23,$H$5:$H$18)","v":107508.54}]
[null,"West-Vlaanderen",{"$f":"SUMIF($B$5:$B$18,B24,$H$5:$H$18)","v":315729.17}]
[null,"Totaal",{"$f":"SUM(C20:C24)","v":1189784.45}]
[]
[null,"Brussel",{"$f":"SUMIF($B$5:$B$18,B27,$H$5:$H$18)","v":0}]
[null,"Algemeen totaal",{"$f":"SUM(C27,C25)","v":1189784.45}]

{"sheet":"Strategisch forfait ZH","index":4,"n_rows":26,"n_cols":10,"rows_kept":26,"cut":false,"hidden":false,"merged":[[0,0,0,9],[1,0,1,9],[16,1,16,2],[16,4,16,5],[5,7,6,7],[2,0,2,9]]}
["Goedgekeurde projecten strategisch forfait van 1 januari tot 30 november 2025"]
["Strategisch forfait ziekenhuizen (voor nieuwbouw, uitbreiding van bestaande capaciteit en herconditionerings-investeringen): een ziekenhuis kan een vraag indienen tot het bekomen van een akkoord strategisch forfait. Zodra desbetreffende infrastructuur in gebruik wordt genomen, start de uitbetaling van het strategisch forfait. De grootte van dat forfait is afhankelijk van een aantal parameters (bv. aantal operatiekwartieren, aantal bedden) en wordt aangepast aan het effectief gebruik van die parameters. Rekening houdend met voorgaande elementen wordt het forfait voor onbepaalde duur jaarlijks uitbetaald zolang de onderliggende parameters in gebruik zijn. Het forfait wordt jaarlijks aangerekend op de VIPA-kredieten op het moment van uitbetaling. Het overzicht bevat de ziekenhuizen die in 2025 een akkoord strategisch forfait verkregen waarbij het bedrag van het jaarlijks strategisch forfait werd bepaald. De betaling van de investeringssubsidies voor deze dossiers start dus vanaf ingebruikname."]
["Frequentie van actualisatie van deze lijst: maandelijks (begin van de maand)."]
["Dossiernummer","Provincie","Gemeente","Type\nziekenhuis","Initiatiefnemer","Voorziening","Project","Globale investeringskost all-in \n(BTW + studiekosten) \ndoor de voorziening opgegeven","Verleende strategische forfaits\nop kruissnelheid\n(incl. intresten)","Goedkeuring"]
["126-ZH246","Oost-Vlaanderen","Aalst","AZ","Algemeen Stedelijk Ziekenhuis Aalst Autonome Verzorgingsinstelling","Algemeen Stedelijk Ziekenhuis","uitbreiding van blok T met 114 bedden klassieke hospitalisatie (capaciteitsvervanging) en 30 plaatsen daghospitalisatie (capaciteitsuitbreiding) voor het Algemeen Stedelijk Ziekenhuis in de Merestraat 80 in Aalst",83000000,1619498.54,"15/01/2025 (ongunstig)"]
["901-ZH268","West-Vlaanderen","Pittem","PZ","Psychiatrisch Ziekenhuis Sint-Jozef vzw","Psychiatrisch Ziekenhuis Sint-Jozef","nieuwbouw verblijfs -en therapie-infrastructuur Zorgprogramma Jeugd (46 k-bedden/plaatsen capaciteitsvervanging, + 7 k(d) reconversie) in de Boterstraat 6 te Pittem",28264921,504560.13,"Gewijzigd akkoord SF 3/06/2025"]
["901-ZH268tris","West-Vlaanderen","Pittem","PZ","Psychiatrisch Ziekenhuis Sint-Jozef vzw","Psychiatrisch Ziekenhuis Sint-Jozef","realisatie van de ondersteunende diensten voor de bedden buiten het project: nieuwbouw van een verblijfs- en therapie-infrastructuur Zorgprogramma Jeugd en ondersteunende diensten in de Boterstraat 6 in Pittem",null,385001.31,"Gewijzigd akkoord SF 3/06/2025"]
["371-ZH323","Limburg","Genk","AZ","Ziekenhuis Oost-Limburg AV","Ziekenhuis Oost-Limburg","nieuwbouw voor de kritieke diensten, de verpleegafdeling, de technische dienst en verbouwing van de huidige spoedafdeling naar een chirurgisch dagziekenhuis voor het Ziekenhuis Oost-Limburg in het Synaps Park 1 in Genk",329356127,7003354.9400000004,"2025-06-27"]
["397-ZH335","West-Vlaanderen","Waregem","AZ","Onze-Lieve-Vrouw van Lourdes Ziekenhuis Waregem vzw","Onze-Lieve-Vrouw van Lourdes Ziekenhuis Waregem","nieuwbouw voor een PAAZ-afdeling met 30 bedden, een afdeling Sp loco met 20 bedden, een A-afdeling met 5 stoelen (allemaal capacitietsvervanging) en een dienst voor ambulante motorische revalidatie voor het O.L.V van Lourdesziekenhuis in de Vijfseweg 150 in Waregem",22395080,622717.79,"2025-07-05"]
["943-ZH334","Vlaams-Brabant","Kortenberg","PZ","Zorg KULeuven vzw","Universitair Centrum KULeuven","ingrijpende duurzame verbouwing van het project 'Welzijnstoren' voor UC Sint-jozef voor 30 a(d)- plaatsen + ondersteunende diensten op de Hertogensite in de Kapucijnenvoer 33 te Leuven.",16900000,407990.1,"2025-10-21"]
["719-ZH267","Limburg","Pelt","AZ","Noorderhart vzw","Maria Ziekenhuis Noord-Limburg","uitbreiding van het Algemeen Mariaziekenhuis met een chirurgisch dagziekenhuis, MKA dienst, psychiatrisch dagziekenhuis, educatiedialyse, revalidatiedienst en administratieve afdeling voor 52,14 dagziekenhuisplaatsen, 4 OK-zalen, ondersteunende diensten en de verbouwing van een centrale sterilisatie, gelegen in Maesensveld 1 in Pelt",57560650,111580.33000000007,"Gewijzigd akkoord SF 21/10/2025"]
["528-ZH241\nSF-Hannelore","West-Vlaanderen","Kortrijk","PZ","Groep Zorg Heilige Familie vzw","Psychiatrisch Ziekenhuis Heilige Familie","verbouwing van een voormalig klooster en kapel tot administratief complex met burelen en vergaderaccommodatie voor het Psychiatrisch Ziekenhuis Heilige Familie op het Plein 26 in Kortrijk",4752381,14278.429999999993,"Technische rechtzetting\n21/11/2025"]
["712-ZH289\nSF-Hannelore","Vlaams-Brabant","Diest","AZ","Algemeen Ziekenhuis Diest vzw","Algemeen Ziekenhuis Diest","nieuwbouw van een algemeen ziekenhuis voor 98 bedden, 40 plaatsen dagziekenhuis en 6 operatiezalen in de Statiestraat 65 te Diest",72000000,1618.2799999997951,"Technische rechtzetting\n21/11/2025"]
[null,null,null,null,null,null,"Totaal goedgekeurde investeringen",null,{"$f":"SUM(I5:I13)","v":10670599.85}]
[]
[]
[null,"Overzicht per provincie ",null,null,"Organisatietype",2021]
[null,"Antwerpen",{"$f":"SUMIF($B$5:$B$15,B18,$I$5:$I$15)","v":0},null,"AZ",{"$f":"SUMIF($D$5:$D$15,E18,$I$5:$I$15)","v":9358769.879999999}]
[null,"Limburg",{"$f":"SUMIF($B$5:$B$15,B19,$I$5:$I$15)","v":7114935.2700000005},null,"UZ",{"$f":"SUMIF($D$5:$D$15,E19,$I$5:$I$15)","v":0}]
[null,"Oost-Vlaanderen",{"$f":"SUMIF($B$5:$B$15,B20,$I$5:$I$15)","v":1619498.54},null,"PZ",{"$f":"SUMIF($D$5:$D$15,E20,$I$5:$I$15)","v":1311829.97}]
[null,"Vlaams-Brabant",{"$f":"SUMIF($B$5:$B$15,B21,$I$5:$I$15)","v":409608.37999999977},null,"RZ",{"$f":"SUMIF($D$5:$D$15,E21,$I$5:$I$15)","v":0}]
[null,"West-Vlaanderen",{"$f":"SUMIF($B$5:$B$15,B22,$I$5:$I$15)","v":1526557.66},null,"Algemeen totaal",{"$f":"SUBTOTAL(9,F18:F21)","v":10670599.85}]
[null,"Totaal",{"$f":"SUM(C18:C22)","v":10670599.85}]
[]
[null,"Brussel",{"$f":"SUMIF($B$5:$B$15,B25,$I$5:$I$15)","v":0}]
[null,"Algemeen totaal",{"$f":"SUM(C25,C23)","v":10670599.85}]

{"sheet":"Toestelfinanciering","index":5,"n_rows":58,"n_cols":9,"rows_kept":58,"cut":false,"hidden":false,"merged":[[57,0,57,4],[5,0,5,8],[0,0,0,8],[1,0,1,8],[2,0,2,8],[3,0,3,8],[4,0,4,8]]}
["Goedgekeurde projecten toestelfinanciering van 1 januari tot 30 november 2025"]
["Toestelfinanciering ziekenhuizen: Het VIPA verstrekt een forfaitaire betoelaging voor volgende zware medische apparatuur in de ziekenhuizen:"]
["- Bestralingsapparaat: een apparaat dat geïnstalleerd is bij een dienst voor radiotherapie"]
["- NMR: een magnetische resonantietomograaf"]
["- PET-scanner"]
["Frequentie van actualisatie van deze lijst: 1 maal per jaar (eind december)."]
["Erk. Nr.","Type","Voorziening","Provincie","Gemeente",2025,null,"Organisatietype",2025]
["009","AZ","Ziekenhuis aan de Stroom","Antwerpen","Antwerpen",542566.76,null,"AZ",{"$f":"SUMIF(B8:B57,\"AZ\",F8:F57)","v":10847560.949999997}]
["012","AZ","Algemeen Ziekenhuis Sint-Blasius","Oost-Vlaanderen","Dendermonde",114188.92,null,"UZ",{"$f":"SUMIF(B8:B57,\"UZ\",F8:F57)","v":2765661.77}]
["017","AZ","Algemeen Ziekenhuis Maria-Middelares","Oost-Vlaanderen","Gent",114188.92,null,"PZ",{"$f":"SUMIF(B8:B57,\"PZ\",F8:F57)","v":0}]
["026","AZ","Algemeen Ziekenhuis Sint-Maarten","Antwerpen","Mechelen",491924.92999999993,null,"RZ",{"$f":"SUMIF(B8:B57,\"RZ\",F8:F57)","v":0}]
["032","AZ","AZ Alma","Oost-Vlaanderen","Eeklo",114188.92,null,"TOTAAL",{"$f":"SUM(I8:I11)","v":13613222.719999997}]
["049","AZ","AZ Sint-Jan Brugge","West-Vlaanderen","Brugge",753434.07000000007]
["057","AZ","Regionaal Ziekenhuis Jan Yperman","West-Vlaanderen","Ieper",114188.92,null,"Overzicht per provincie ",2025]
["063","AZ","Algemeen Ziekenhuis Turnhout","Antwerpen","Turnhout",114188.92,null,"Antwerpen",{"$f":"SUMIF(D8:D57,\"Antwerpen\",F8:F57)","v":4123777.8399999989}]
["097","AZ","Heilig Hartziekenhuis","Antwerpen","Lier",114188.92,null,"Limburg",{"$f":"SUMIF(D8:D57,\"Limburg\",F8:F57)","v":1541889.1999999997}]
["099","AZ","Ziekenhuis aan de Stroom","Antwerpen","Antwerpen",1333208.03,null,"Oost-Vlaanderen",{"$f":"SUMIF(D8:D57,\"Oost-Vlaanderen\",F8:F57)","v":2968305.8199999994}]
["102","AZ","Heilig Hartziekenhuis","Antwerpen","Mol",114188.92,null,"Vlaams-Brabant",{"$f":"SUMIF(D8:D57,\"Vlaams-Brabant\",F8:F57)","v":1362869.5299999998}]
["104","AZ","AZ Rivierenland ","Antwerpen","Bornem",114188.92,null,"West-Vlaanderen",{"$f":"SUMIF(D8:D57,\"West-Vlaanderen\",F8:F57)","v":2675097.2299999995}]
["106","AZ","Algemeen Ziekenhuis Sint-Maria","Vlaams-Brabant","Halle",114188.92,null,"Totaal Vlaanderen",{"$f":"SUM(I15:I19)","v":12671939.619999997}]
["108","AZ","Regionaal Ziekenhuis Heilig Hart","Vlaams-Brabant","Leuven",114188.92,null,"Brussel",{"$f":"SUMIF(D8:D57,\"Brussel\",F8:F57)","v":941283.10000000009}]
["109","AZ","Algemeen Ziekenhuis Heilig Hart","Vlaams-Brabant","Tienen",114188.92,null,"Algemeen totaal",{"$f":"SUM(I20:I21)","v":13613222.719999997}]
["117","AZ","Algemeen Ziekenhuis Delta ","West-Vlaanderen","Roeselare",404075.9]
["124","AZ","Sint-Jozefskliniek","West-Vlaanderen","Izegem",114188.92]
["126","AZ","AZORG","Oost-Vlaanderen","Aalst",718264.82000000007]
["134","AZ","Sint-Vincentiusziekenhuis","Oost-Vlaanderen","Deinze",114188.92]
["140","AZ","Algemeen Ziekenhuis Sint-Lucas","West-Vlaanderen","Assebroek - Brugge",114188.92]
["143","UZ","UZ Brussel","Brussel","Jette",941283.10000000009]
["170","AZ","Algemeen Ziekenhuis Oudenaarde","Oost-Vlaanderen","Oudenaarde",114188.92]
["204","AZ","Algemeen Ziekenhuis Jan Portaels Vilvoorde","Vlaams-Brabant","Vilvoorde",114188.92]
["217","AZ","Algemeen Ziekenhuis Sint-Elisabeth","Oost-Vlaanderen","Zottegem",114188.92]
["243","AZ","Jessa Ziekenhuis A.V.","Limburg","Hasselt",542566.76]
["290","AZ","AZ Sint-Lucas","Oost-Vlaanderen","Gent",604075.89999999991]
["300","UZ","UZ Antwerpen","Antwerpen","Edegem",528377.84]
["308","AZ","Algemeen Ziekenhuis Sint-Elisabeth","Antwerpen","Herentals",114188.92]
["310","AZ","AZ West ","West-Vlaanderen","Veurne",114188.92]
["322","UZ","UZ Leuven","Vlaams-Brabant","Leuven",791924.92999999993]
["371","AZ","Ziekenhuis Oost-Limburg","Limburg","Genk",428377.83999999997]
["392","AZ","Algemeen Ziekenhuis Zeno","West-Vlaanderen","Knokke-Heist",114188.92]
["395","AZ","Sint-Andriesziekenhuis","West-Vlaanderen","Tielt",114188.92]
["396","AZ","Algemeen Ziekenhuis Groeninge","West-Vlaanderen","Kortrijk",604075.89999999991]
["397","AZ","Onze-Lieve-Vrouw van Lourdes Ziekenhuis","West-Vlaanderen","Waregem",114188.92]
["525","AZ","Algemeen Ziekenhuis Oostende","West-Vlaanderen","Oostende",114188.92]
["536","AZ","Algemeen Ziekenhuis Voorkempen","Antwerpen","Malle",114188.92]
["550","AZ","Algemeen Ziekenhuis Glorieux","Oost-Vlaanderen","Ronse",114188.92]
["595","AZ","AZ VITAZ","Oost-Vlaanderen","Sint-Niklaas",228377.84]
["670","uz","Universitair Ziekenhuis Gent","Oost-Vlaanderen","Gent",504075.89999999997]
["689","AZ","Imeldaziekenhuis","Antwerpen","Bonheiden",314188.92]
["709","AZ","Algemeen Ziekenhuis Sint-Dimpna","Antwerpen","Geel",114188.92]
["710","AZ","Algemeen Ziekenhuis KLINA","Antwerpen","Brasschaat",114188.92]
["712","AZ","Algemeen Ziekenhuis Diest","Vlaams-Brabant","Diest",114188.92]
["713","AZ","Algemeen Ziekenhuis Jan Palfijn","Oost-Vlaanderen","Gent",114188.92]
["714","AZ","Sint-Franciscusziekenhuis","Limburg","Heusden-Zolder",114188.92]
["715","AZ","Sint-Trudo ziekenhuis","Limburg","Sint-Truiden",114188.92]
["716","AZ","Algemeen Ziekenhuis Vesalius","Limburg","Tongeren",114188.92]
["717","AZ","Ziekenhuis Oost-Limburg Autonome Verzorgingsinstelling","Limburg","Genk",114188.92]
["719","AZ","Maria Ziekenhuis Noord-Limburg","Limburg","Pelt",114188.92]
["Totaal goedgekeurde investeringen",null,null,null,null,{"$f":"SUM(F8:F57)","v":13613222.719999999}]

{"sheet":"Instandhoudingsforfait","index":6,"n_rows":96,"n_cols":9,"rows_kept":96,"cut":false,"hidden":false,"merged":[[99,1,99,2],[0,0,0,7],[1,0,1,7],[96,1,96,2],[97,1,97,2],[98,1,98,2],[95,0,95,4]]}
["Goedgekeurde projecten instandhoudingsforfait van 1 januari tot 30 november 2025"]
["Instandhoudingsforfait ziekenhuizen: Die financiering moet het voor de ziekenhuizen mogelijk maken om hun bestaande infrastructuur d.m.v. onderhoudsinvesteringen kwalitatief op peil te houden. Het forfait wordt berekend en evolueert op basis van een aantal parameters (bv. aantal operatiekwartieren, aantal bedden) en wordt automatisch uitbetaald zonder aanvraagprocedure. De aanrekening op de VIPA-kredieten gebeurt op het moment van de uitbetaling."]
["Erk. Nr.","Type","Voorziening","Provincie","Gemeente",2025,null,"Organisatietype",2025]
["009","AZ","Ziekenhuis aan de Stroom","Antwerpen","Antwerpen",7275269.3799999999,null,"AZ",{"$f":"SUMIF(B4:B95,\"AZ\",F4:F95)","v":93070043.74999997}]
["012","AZ","Algemeen Ziekenhuis Sint-Blasius","Oost-Vlaanderen","Dendermonde",1896755.58,null,"UZ",{"$f":"SUMIF(B4:B95,\"UZ\",F4:F95)","v":26950902.800000001}]
["017","AZ","Algemeen Ziekenhuis Maria-Middelares","Oost-Vlaanderen","Gent",1772971.7,null,"PZ",{"$f":"SUMIF(B4:B95,\"PZ\",F4:F95)","v":25590446.899999999}]
["026","AZ","Algemeen Ziekenhuis Sint-Maarten","Antwerpen","Mechelen",1762392.09,null,"RZ",{"$f":"SUMIF(B4:B95,\"RZ\",F4:F95)","v":3727955.2399999998}]
["032","AZ","AZ Alma","Oost-Vlaanderen","Eeklo",1316188,null,"TOTAAL",{"$f":"SUM(I4:I7)","v":149339348.68999997}]
["049","AZ","AZ Sint-Jan Brugge","West-Vlaanderen","Brugge",3778709.77]
["057","AZ","Regionaal Ziekenhuis Jan Yperman","West-Vlaanderen","Ieper",2111644.81,null,"Overzicht per provincie ",2025]
["063","AZ","Algemeen Ziekenhuis Turnhout","Antwerpen","Turnhout",1977974.99,null,"Antwerpen",{"$f":"SUMIF(D4:D95,\"Antwerpen\",F4:F95)","v":43167932.18999999}]
["067","AZ","AZ Oostende-Serruys","West-Vlaanderen","Oostende",909174.13,null,"Limburg",{"$f":"SUMIF(D4:D95,\"Limburg\",F4:F95)","v":18639067.84}]
["097","AZ","Heilig Hartziekenhuis","Antwerpen","Lier",2027091.09,null,"Oost-Vlaanderen",{"$f":"SUMIF(D4:D95,\"Oost-Vlaanderen\",F4:F95)","v":35665221.559999995}]
["099","AZ","Ziekenhuis aan de Stroom","Antwerpen","Antwerpen",4364142.5199999996,null,"Vlaams-Brabant",{"$f":"SUMIF(D4:D95,\"Vlaams-Brabant\",F4:F95)","v":21528062.009999998}]
["102","AZ","Heilig Hartziekenhuis","Antwerpen","Mol",1050830.1599999999,null,"West-Vlaanderen",{"$f":"SUMIF(D4:D95,\"West-Vlaanderen\",F4:F95)","v":26325922.550000001}]
["104","AZ","AZ Rivierenland ","Antwerpen","Bornem",1427339.02,null,"Totaal Vlaanderen",{"$f":"SUM(I11:I15)","v":145326206.14999998}]
["106","AZ","Algemeen Ziekenhuis Sint-Maria","Vlaams-Brabant","Halle",1530988.07,null,"Brussel",{"$f":"SUMIF(D4:D95,\"Brussel\",F4:F95)","v":4013142.54}]
["108","AZ","Regionaal Ziekenhuis Heilig Hart","Vlaams-Brabant","Leuven",1006725.91,null,"Algemeen totaal",{"$f":"SUM(I16:I17)","v":149339348.68999997}]
["109","AZ","Algemeen Ziekenhuis Heilig Hart","Vlaams-Brabant","Tienen",1059427.97]
["117","AZ","Algemeen Ziekenhuis Delta ","West-Vlaanderen","Roeselare",3740044.99]
["124","AZ","Sint-Jozefskliniek","West-Vlaanderen","Izegem",976286.07]
["126","AZ","AZORG","Oost-Vlaanderen","Aalst",3697640.8]
["134","AZ","Sint-Vincentiusziekenhuis","Oost-Vlaanderen","Deinze",930404.87]
["140","AZ","Algemeen Ziekenhuis Sint-Lucas","West-Vlaanderen","Assebroek - Brugge",1631251.91]
["170","AZ","Algemeen Ziekenhuis Oudenaarde","Oost-Vlaanderen","Oudenaarde",480359.43]
["176","AZ","AZORG","Oost-Vlaanderen","Aalst",2560397.35]
["204","AZ","Algemeen Ziekenhuis Jan Portaels Vilvoorde","Vlaams-Brabant","Vilvoorde",897943.97]
["217","AZ","Algemeen Ziekenhuis Sint-Elisabeth","Oost-Vlaanderen","Zottegem",899482.71]
["243","AZ","Jessa Ziekenhuis A.V.","Limburg","Hasselt",4081738.42]
["290","AZ","AZ Sint-Lucas","Oost-Vlaanderen","Gent",3035875.79]
["308","AZ","Algemeen Ziekenhuis Sint-Elisabeth","Antwerpen","Herentals",806387.52]
["310","AZ","AZ West ","West-Vlaanderen","Veurne",613973.07999999996]
["371","AZ","Ziekenhuis Oost-Limburg","Limburg","Genk",4318032.72]
["392","AZ","Algemeen Ziekenhuis Zeno","West-Vlaanderen","Knokke-Heist",718547.07]
["395","AZ","Sint-Andriesziekenhuis","West-Vlaanderen","Tielt",939208.98]
["396","AZ","Algemeen Ziekenhuis Groeninge","West-Vlaanderen","Kortrijk",3564461.9]
["397","AZ","Onze-Lieve-Vrouw van Lourdes Ziekenhuis","West-Vlaanderen","Waregem",628535.71]
["525","AZ","Algemeen Ziekenhuis Oostende","West-Vlaanderen","Oostende",1385970.52]
["536","AZ","Algemeen Ziekenhuis Voorkempen","Antwerpen","Malle",818584.09]
["550","AZ","Algemeen Ziekenhuis Glorieux","Oost-Vlaanderen","Ronse",1210518.95]
["595","AZ","AZ VITAZ","Oost-Vlaanderen","Sint-Niklaas",3295288.42]
["682","AZ","Algemeen Ziekenhuis Monica","Antwerpen","Deurne",2321554.23]
["689","AZ","Imeldaziekenhuis","Antwerpen","Bonheiden",2214892.38]
["709","AZ","Algemeen Ziekenhuis Sint-Dimpna","Antwerpen","Geel",1387713.16]
["710","AZ","Algemeen Ziekenhuis KLINA","Antwerpen","Brasschaat",2659997.9]
["712","AZ","Algemeen Ziekenhuis Diest","Vlaams-Brabant","Diest",999224.3]
["713","AZ","Algemeen Ziekenhuis Jan Palfijn","Oost-Vlaanderen","Gent",907505.41]
["714","AZ","Sint-Franciscusziekenhuis","Limburg","Heusden-Zolder",761291.07]
["715","AZ","Sint-Trudo ziekenhuis","Limburg","Sint-Truiden",1310791.8999999999]
["716","AZ","Algemeen Ziekenhuis Vesalius","Limburg","Tongeren",1400528.24]
["717","AZ","Ziekenhuis Oost-Limburg Autonome Verzorgingsinstelling","Limburg","Genk",812617.08]
["719","AZ","Maria Ziekenhuis Noord-Limburg","Limburg","Pelt",1795367.62]
["143","UZ","UZ Brussel","Brussel","Jette",3913049.15]
["300","UZ","UZ Antwerpen","Antwerpen","Edegem",4652719]
["322","UZ","UZ Leuven","Vlaams-Brabant","Leuven",11478963.99]
["670","UZ","Universitair Ziekenhuis Gent","Oost-Vlaanderen","Gent",6906170.6600000001]
["528","PZ","Psychiatrisch Ziekenhuis Heilige Familie","West-Vlaanderen","Kortrijk",326453.28999999998]
["900","PZ","Fusieziekenhuis Psychiatrisch Centrum Dr. Guislain","Oost-Vlaanderen","Gent",872595.98]
["901","PZ","Kliniek Sint-Jozef, Centrum voor Psychiatrie en Psychotherapie","West-Vlaanderen","Pittem",543797.43999999994]
["902","PZ","Multiversum","Antwerpen","Boechout",1582562.53]
["909","PZ","OPZC Rekem","Limburg","Rekem Lanaken",1074480.73]
["911","PZ","PZ Frapello ","Oost-Vlaanderen","Zottegem",570494.18999999994]
["918","PZ","Psychiatrisch Ziekenhuis en Revalidatiecentrum Sint-Hiëronymus","Oost-Vlaanderen","Sint-Niklaas",634106.80000000005]
["937","PZ","Psychiatrisch Ziekenhuis Bethaniënhuis","Antwerpen","Zoersel",1466540.8]
["939","PZ","Openbaar Psychiatrisch Zorgcentrum Geel ","Antwerpen","Geel",2037489.43]
["942","PZ","Psychiatrische Kliniek Sint-Annendael","Vlaams-Brabant","Diest",302076.94]
["943","PZ","Z.org KU Leuven","Vlaams-Brabant","Kortenberg",756582.34]
["944","PZ","Psychiatrische Kliniek Sint-Alexius","Vlaams-Brabant","Grimbergen",467306.13]
["947","PZ","Psychiatrische Kliniek Broeders Alexianen","Vlaams-Brabant","Tienen",906282.71]
["952","PZ","Zorggroep Myna Psychiatrisch Ziekenhuis Bilzen-Hoeselt","Limburg","Bilzen",945619.85]
["956","PZ","PZ St Jan ","Oost-Vlaanderen","Eeklo",532700.74]
["959","PZ","Psychiatrisch Centrum Caritas","Oost-Vlaanderen","Melle",934139.34]
["960","PZ","PZ Sint-Lucia","Oost-Vlaanderen","Sint-Niklaas",800206.29]
["961","PZ","Psychiatrisch Ziekenhuis Heilig Hart","West-Vlaanderen","Ieper",655508.26]
["962","PZ","Psychiatrisch Centrum Onze-Lieve-Vrouw van Vrede","West-Vlaanderen","Menen",528647.31999999995]
["963","PZ","Psychiatrisch Ziekenhuis Onze-Lieve-Vrouw","West-Vlaanderen","Brugge",1051805.97]
["970","PZ","Psychiatrisch Ziekenhuis Duffel","Antwerpen","Duffel",1547450.5]
["975","PZ","Universitair Psychiatrisch Centrum Sint-Kamillus","Vlaams-Brabant","Bierbeek",1129770.81]
["978","PZ","Psychiatrisch Centrum Sint-Jan Baptist","Oost-Vlaanderen","Zelzate",547757.03]
["982","PZ","Psychiatrisch Centrum Sint-Amandus","West-Vlaanderen","Beernem",1228096.55]
["987","PZ","Psychotherapeutisch Centrum Rustenburg","West-Vlaanderen","Brugge",60152.31]
["988","PZ","Psychiatrisch Ziekenhuis Ariadne","Oost-Vlaanderen","Lede",606343.52]
["989","PZ","Kinderpsychiatrisch Centrum Genk","Limburg","Genk",18924.43]
["991","PZ","Zorggroep Myna Psychiatrisch Ziekenhuis Sint-Truiden","Limburg","Sint-Truiden",1594843.51]
["992","PZ","Psychiatrische Centra Gent - Sleidinge","Oost-Vlaanderen","Gent",938026.08]
["997","PZ","PSC Elsene","Brussel","Brussel",100093.39]
["998","PZ","Psychiatrisch Ziekenhuis Stuivenberg","Antwerpen","Antwerpen",829591.69]
["046","RZ","Verpleeginrichting De Dennen","Antwerpen","Malle",188136.3]
["095","RZ","Zorgband Leie & Schelde ","Oost-Vlaanderen","Merelbeke",319291.92]
["116","RZ","Revalidatie & MS Centrum","Limburg","Pelt",524832.27]
["236","RZ","Revalidatieziekenhuis ReVarte ","Antwerpen","Edegem",769273.41]
["499","RZ","Ziekenhuis Inkendaal-Koninklijke Instelling","Vlaams-Brabant","Vlezenbeek",557759.24]
["676","RZ","Koningin Elisabeth Instituut (KEI)","West-Vlaanderen","Oostduinkerke",473410.04]
["679","RZ","Revalidatieziekenhuis IMBO","West-Vlaanderen","Oostende",460242.43]
["693","RZ","Multiple Sclerose Kliniek","Vlaams-Brabant","Melsbroek",435009.63]
["Totaal goedgekeurde investeringen",null,null,null,null,{"$f":"SUM(F4:F95)","v":149339348.68999997}]

{"sheet":"Blad16","index":7,"n_rows":0,"n_cols":0,"rows_kept":0,"cut":false,"hidden":true,"merged":[]}

{"sheet":"Blad17","index":8,"n_rows":0,"n_cols":0,"rows_kept":0,"cut":false,"hidden":true,"merged":[]}

{"sheet":"Blad1","index":9,"n_rows":0,"n_cols":0,"rows_kept":0,"cut":false,"hidden":true,"merged":[]}